Cogmind - Beta 17.1 @@@ ROGUE MODE // 2026.09.20 @ 09:32:44 Player: MolePlayingNice Result: Destroyed by MAIN.C with Improved Heavy Machine Gun Performance ------------- Evolutions (9) 4500 Regions Visited (30) 6000 Robots Destroyed (433) 2165 Value Destroyed (25278) 25278 Prototype IDs (149) 2980 Alien Tech Used (11) 2200 Bonus (30881) 30881 TOTAL SCORE: 74004 Bonus ------- Triggered High Security 500 High Alert Combat Kills 7618 Follower Combat Kills 2846 Hunted by Unchained 500 Forged Quantum Companion 2000 Registered with UFD 300 Met Optimus in HQ 500 Met Zhirov 300 Met Warlord at Base 500 MAIN.C Attacked Warlord 500 Built Enhanced Grunts 300 Met R17 at Cetus 500 Used Core Reset Matrix 3000 Met R17 at Research 2000 Scanned by Researcher 500 Destroyed MAIN.C Guards 500 Met MAIN.C 5000 Destroyed MAIN.C Shell 5000 Friendly Fire -1483 Cogmind --------- Core Integrity 0/1600 Matter 300/300 Energy 100/100 System Corruption 28% Temperature Cool (4) Movement Core (700) Ox13 Location -1/Command Parts ------- > --- POWER (3) -------- (None) > --- PROPULSION (5) --- (None) > --- UTILITY (16) ----- High-capacity Storage Unit Advanced Melee Analysis Suite Advanced Melee Analysis Suite Advanced Melee Analysis Suite Graphene Brace > --- WEAPON (1) ------- Superquantum Companion > --- INVENTORY (20) --- Reinforced Antimatter Reactor Micro Antimatter Reactor Experimental Cloaking Device Advanced Force Field Improved Remote Shield Improved Remote Force Field Advanced Point Defense System Compact HERF Cannon Enhanced Hardcell Cannon Gamma Bomb Array Hellfire Missile Launcher Improved Plasma Cutter Peak State ------------ > --- POWER ------------ Quantum Reactor Quantum Reactor Quantum Reactor > --- PROPULSION ------- Experimental Flexi-carbon Leg Experimental Flexi-carbon Leg Experimental Flexi-carbon Leg Experimental Flexi-carbon Leg Enhanced Biometal Leg > --- UTILITY ---------- Large Storage Unit Advanced Sensor Array Experimental Signal Interpreter Advanced Melee Analysis Suite Advanced Melee Analysis Suite Advanced Melee Analysis Suite Experimental Core Analyzer Improved Armor Integrity Analyzer Advanced Transmission Jammer Experimental Reaction Control System Experimental Cloaking Device Heavy Regenerative Plating Graphene Brace Advanced Force Field A0-MCA's Component Scanner > --- WEAPON ----------- Superquantum Companion > --- INVENTORY -------- Quantum Reactor Quantum Reactor Quantum Reactor Myomer Leg Centrium Leg Experimental Energy Well Hacking Suite Advanced Hacking Suite System Shield Dimensional Node Initializer Terrabomb Enhanced Nova Cannon Enhanced Nova Cannon Hellfire Missile Launcher Improved Plasma Cutter [Rating: 206] Favorites ----------- Power Quantum Reactor Engine Light Ion Engine Power Core Neutrino Core Reactor Quantum Reactor Propulsion Experimental Myomer Leg Treads Improved Treads Leg Experimental Myomer Leg Wheel Wheel Utility Large Storage Unit Device Microactuators Storage Large Storage Unit Processor Advanced Melee Analysis Suite Hackware Advanced Hacking Suite Protection Centrium Medium Armor Plating Artifact Core Physics Calibrator Weapon Companion Sword Energy Gun Medium Laser Energy Cannon Phase Cannon Ballistic Gun Light Assault Rifle Ballistic Cannon Light Cannon Launcher Fusion Bomb Launcher Special Weapon Improved Plasma Cutter Impact Weapon Heavy Mace Slashing Weapon Companion Sword Build | -11 -10 -10 -8 -8 -6 -6 -6 -6 -6 -5 -5 -5 -5 -5 -5 -4 -4 -4 -4 -4 -4 -4 -3 -3 -3 -2 -2 -2 -1 -1 ------- Run | Yrd Mat Sub Rec Scr Fac Ext Cet Arc Hub Fac Was Fac Upp Upp Zhi Pro Fac Was Fac Upp Upp War Pro Res Tes Res Qua Sec Acc Com Slots Evolved 18 | . . . . . 8 . . . . 2 . . . . . . 2 . . . . . . 2 . 2 . . 2 . Power 2 | . . . . . . . . . . 1 . . . . . . . . . . . . . 1 . . . . . . Propulsion 3 | . . . . . 2 . . . . . . . . . . . . . . . . . . . . . . . 1 . Utility 14 | . . . . . 6 . . . . 1 . . . . . . 2 . . . . . . 1 . 2 . . 2 . Weapon -1 | . . . . . . . . . . . . . . . . . . . . . . . . . . . . . -1 . Parts Attached 290 | . 10 1 2 6 23 25 3 3 5 6 4 15 . 1 4 9 4 1 1 2 . 2 1 25 6 10 9 49 40 23 Power 59 | . 1 . . . 3 5 1 1 1 2 . 2 . . . 3 . . . . . . . 6 1 4 1 11 11 6 Engine 3 | . . . . . 1 2 . . . . . . . . . . . . . . . . . . . . . . . . Core 12 | . 1 . . . 2 3 . 1 . 2 . 2 . . . 1 . . . . . . . . . . . . . . Reactor 44 | . . . . . . . 1 . 1 . . . . . . 2 . . . . . . . 6 1 4 1 11 11 6 Propulsion 70 | . 2 . 1 2 8 7 . . 2 1 2 5 . . 1 2 . . . . . 1 . 6 . . 5 9 9 7 Treads 5 | . 2 . 1 1 1 . . . . . . . . . . . . . . . . . . . . . . . . . Leg 64 | . . . . . 7 7 . . 2 1 2 5 . . 1 2 . . . . . 1 . 6 . . 5 9 9 7 Wheel 1 | . . . . 1 . . . . . . . . . . . . . . . . . . . . . . . . . . Hover . | . . . . . . . . . . . . . . . . . . . . . . . . . . . . . . . Flight . | . . . . . . . . . . . . . . . . . . . . . . . . . . . . . . . Utility 127 | . 3 1 . 2 10 8 2 2 2 2 . 5 . 1 3 4 3 . 1 1 . . . 12 5 4 2 26 20 8 Device 40 | . . . . . 2 . . 2 1 . . 4 . . 2 2 2 . . . . . . 5 3 3 . 4 6 4 Storage 6 | . 2 . . . . . . . . . . . . . 1 . . . . . . . . . . . . . 3 . Processor 32 | . . . . . 6 2 . . . 1 . . . . . 1 1 . 1 1 . . . 4 . 1 . 11 3 . Hackware 8 | . . . . . 1 . . . . 1 . 1 . . . . . . . . . . . 1 . . . 1 3 . Protection 39 | . 1 1 . 2 1 6 2 . 1 . . . . 1 . 1 . . . . . . . 2 2 . 1 9 5 4 Artifact 2 | . . . . . . . . . . . . . . . . . . . . . . . . . . . 1 1 . . Weapon 34 | . 4 . 1 2 2 5 . . . 1 2 3 . . . . 1 1 . 1 . 1 1 1 . 2 1 3 . 2 Energy Gun . | . . . . . . . . . . . . . . . . . . . . . . . . . . . . . . . Energy Cannon 9 | . 1 . . . 2 1 . . . 1 . 1 . . . . . 1 . . . . . . . 1 . . . 1 Ballistic Gun 1 | . 1 . . . . . . . . . . . . . . . . . . . . . . . . . . . . . Ballistic Cannon 7 | . 2 . 1 1 . 1 . . . . 1 . . . . . . . . . . . . . . . . . . 1 Launcher 7 | . . . . . . 2 . . . . . 1 . . . . 1 . . 1 . . . . . 1 . 1 . . Special Weapon 6 | . . . . . . 1 . . . . . . . . . . . . . . . 1 1 1 . . . 2 . . Impact Weapon 1 | . . . . . . . . . . . 1 . . . . . . . . . . . . . . . . . . . Slashing Weapon 3 | . . . . 1 . . . . . . . 1 . . . . . . . . . . . . . . 1 . . . Piercing Weapon . | . . . . . . . . . . . . . . . . . . . . . . . . . . . . . . . Special Melee Weapon . | . . . . . . . . . . . . . . . . . . . . . . . . . . . . . . . Unidentified Prototypes 18 | . . . . 1 1 . 3 . 1 . 1 1 . . 3 . . . . . . . . . . . 2 5 . . Corrupted Parts 3 | . . . . . . . . . . . . . . . . 2 . . . . . . . . . . . . 1 . System Corruption 21 | . . . . . . . . . . . . . . . . 12 . . . . . . . . . . . . 9 . Parts Lost 102 | . . 1 . . 1 12 1 . 2 . . . . 1 . 1 . . . . . . 1 2 . 3 4 26 16 31 Power 20 | . . . . . . 2 . . . . . . . . . . . . . . . . . 1 . 1 2 6 4 4 Propulsion 24 | . . . . . . 5 . . . . . . . . . 1 . . . . . . . . . . . 4 4 10 Utility 55 | . . 1 . . 1 3 . . 2 . . . . 1 . . . . . . . . 1 1 . 2 2 16 8 17 Weapon 3 | . . . . . . 2 1 . . . . . . . . . . . . . . . . . . . . . . . Highest Loss Streak 15 | . . 1 . . 1 9 1 . 2 . . . . 1 . 1 . . . . . . 1 1 . 1 3 6 3 15 To Critical Strikes 3 | . . . . . . . 1 . . . . . . . . 1 . . . . . . . . . . . . 1 . Average Backups 14 | . 9 10 13 14 14 14 14 15 14 14 15 14 14 14 14 14 13 15 15 14 14 14 13 14 14 14 13 12 12 17 Power 1 | . . . . . 1 . 1 2 2 2 2 2 2 2 1 2 2 2 2 2 2 1 1 1 1 2 1 1 1 1 Propulsion 2 | . 5 5 5 3 2 2 2 2 2 3 3 3 3 2 2 1 1 1 1 1 1 1 1 1 1 1 . . 1 1 Utility 4 | . 1 1 2 4 3 4 5 6 5 3 4 3 4 4 4 4 3 4 4 4 5 5 5 5 6 5 3 3 4 9 Weapon 3 | . 2 4 5 4 6 5 4 4 4 4 5 5 3 3 4 3 4 5 5 4 3 3 3 3 2 2 1 1 2 3 Tool/Special . | . . . . . . . . . . . . . . . . . . . . . . . . . . . . . . . Unused Backups 61 | . 9 . 2 9 5 4 2 . . . 1 1 . . 1 . . . . . . . . 3 3 2 2 2 10 5 Power 11 | . 2 . . . 1 . . . . . . . . . . . . . . . . . . . . 2 . 1 5 . Propulsion 11 | . 3 . . 1 1 3 . . . . . . . . . . . . . . . . . . 2 . . . 1 . Utility 19 | . 1 . . 3 1 . 1 . . . . . . . 1 . . . . . . . . 3 1 . 1 1 2 4 Weapon 19 | . 3 . 2 5 2 1 1 . . . 1 1 . . . . . . . . . . . . . . 1 . 1 1 Tool/Special 1 | . . . . . . . . . . . . . . . . . . . . . . . . . . . . . 1 . Average Slot Usage (%) 90 | . 99 100 100 90 92 95 92 92 92 92 94 94 94 95 94 94 94 94 94 94 94 94 94 87 84 79 83 84 92 89 Core 4 | . 5 14 14 14 4 4 6 6 . 7 11 11 11 11 11 11 4 7 5 5 5 2 . . . . . . . . Reactor 4 | . . . . . . . . . 5 1 . . . . . . 5 2 5 5 5 7 10 9 8 5 10 11 10 11 Treads 5 | . 27 28 28 27 11 . . . . . . . . . . . . . . . . . . . . . . . . . Leg 16 | . . . . . 14 25 26 26 26 23 23 23 23 23 23 22 21 21 21 21 21 21 21 16 14 13 12 16 19 18 Device 11 | . . . . . 4 4 . 3 . 5 5 4 17 17 17 17 20 21 21 21 21 21 20 17 19 22 20 14 13 13 Storage 6 | . 14 14 14 14 6 6 6 6 6 5 5 5 5 5 5 5 5 5 5 5 5 5 5 4 4 4 4 4 5 5 Processor 20 | . . . . . 25 28 33 33 30 23 23 21 17 17 17 17 21 21 21 21 21 21 21 23 23 23 26 27 32 25 Protection 9 | . 13 14 14 14 9 11 13 9 14 11 11 13 11 10 11 11 10 10 10 10 10 10 10 9 8 4 4 4 6 11 Ballistic Cannon 2 | . 20 21 28 8 . 4 . . . . . . . . . . . . . . . . . . . . . . . . Slashing Weapon 4 | . . . . 10 5 3 4 6 6 5 3 5 5 5 5 4 5 2 5 5 4 5 4 3 4 4 3 3 3 3 Peak Build Rating 206 | . 13 13 17 26 68 73 81 78 90 97 104 110 102 102 97 105 123 127 121 125 128 130 138 172 178 188 196 185 206 201 Average Rating 113 | . 11 12 14 21 57 65 73 75 82 92 94 98 94 95 92 95 117 117 119 121 120 125 130 153 168 178 180 159 190 181 On Entrance 97 | 6 6 13 13 17 23 65 66 78 78 90 92 96 94 102 91 95 105 118 119 121 121 120 130 125 161 166 175 166 180 198 Avg Prop Armor Cover (%) 6 | . . . . 7 . . . . . . . . . . . . . . . . . . . . . . . 3 . 7 Naked Turns . | . . . . . . . . . . . . . . . . . . . . . . . . . . . . . . . Heaviest Build 145 | 12 38 38 41 45 51 67 57 53 62 73 77 82 83 83 71 94 92 102 91 91 96 97 103 109 117 115 122 121 141 145 Greatest Support 136 | 20 46 46 46 45 91 81 80 80 88 88 88 97 92 92 92 94 94 94 94 94 94 103 103 108 105 105 115 122 134 136 Greatest Overweight (x) 21 | . . . . 4 1 1 . . . . . . . . . . . 1 . . 1 1 . 1 1 1 1 1 1 21 Average Overweight (x) . | . . . . . . . . . . . . . . . . . . . . . . . . . . . . . . . Largest Inventory Capacity 20 | . 15 15 15 15 15 15 15 15 15 15 15 15 15 15 15 15 15 15 15 15 15 15 15 15 15 15 15 15 20 20 Average Capacity 15 | . 11 15 15 15 15 15 15 15 15 15 15 15 15 15 15 15 15 15 15 15 15 15 15 15 15 15 15 15 14 20 Most Carried 20 | . 11 11 15 15 15 15 15 15 15 15 15 15 15 15 15 15 15 15 15 15 15 15 15 15 15 15 15 15 17 20 Average Carried 14 | . 9 10 13 14 14 14 14 15 14 14 14 14 14 14 14 14 13 14 15 14 14 14 14 14 14 14 14 13 12 18 Final Capacity 20 | 8 15 15 15 15 15 15 15 15 15 15 15 15 15 15 15 15 15 15 15 15 15 15 15 15 15 15 15 15 20 20 Final Carried 15 | 6 11 10 15 15 15 15 15 15 15 15 15 15 14 15 15 14 15 15 15 15 15 15 15 15 15 14 11 15 15 12 Class Distribution -------------------- 30% | Scavenger-Assassin 20% | Scavenger-Mutant 14% | Assassin 13% | Mutant 12% | Commander-Mutant 4% | Alien-Mutant Dominant Class ---------------- Mutant | -10/Materials Mutant | -10/Subcaves Commander-Mutant | -8/Recycling Commander-Mutant | -8/Scraptown Assassin | -6/Factory Mutant | -6/Extension Scavenger-Mutant | -6/Cetus Scavenger-Mutant | -6/Archives Commander-Mutant | -6/Hub_04(d) Scavenger-Assassin | -5/Factory Scavenger-Assassin | -5/Waste Scavenger-Assassin | -5/Factory Commander-Assassin | -5/Upper Caves Scavenger-Assassin | -5/Upper Caves Assassin | -5/Zhirov Scavenger-Assassin | -4/Proximity Caves Scavenger-Assassin | -4/Factory Scavenger-Assassin | -4/Waste Scavenger-Assassin | -4/Factory Scavenger-Assassin | -4/Upper Caves Scavenger-Assassin | -4/Upper Caves Scavenger-Assassin | -4/Warlord Scavenger-Assassin | -3/Proximity Caves Scavenger-Assassin | -3/Research Assassin | -3/Testing Assassin | -2/Research Mutant | -2/Quarantine Scavenger-Assassin | -2/Section 7 Scavenger-Mutant | -1/Access Scavenger-Mutant | -1/Command Resources | -11 -10 -10 -8 -8 -6 -6 -6 -6 -6 -5 -5 -5 -5 -5 -5 -4 -4 -4 -4 -4 -4 -4 -3 -3 -3 -2 -2 -2 -1 -1 ----------- Run | Yrd Mat Sub Rec Scr Fac Ext Cet Arc Hub Fac Was Fac Upp Upp Zhi Pro Fac Was Fac Upp Upp War Pro Res Tes Res Qua Sec Acc Com Matter Collected 6790 | 189 255 72 337 196 314 845 172 72 45 70 97 285 111 84 86 182 110 35 62 131 198 10 124 459 154 442 206 802 346 299 Remotely . | . . . . . . . . . . . . . . . . . . . . . . . . . . . . . . . Salvage Created 26274 | . 240 46 79 217 602 1155 423 66 193 257 69 600 . 79 116 357 137 . . 240 434 . 8 779 1479 2440 882 5447 6702 3227 Parts 1205 | . 18 6 6 11 33 47 32 6 7 11 4 46 . 5 4 20 6 . . 6 12 . . 31 72 137 71 251 243 120 Haulers Intercepted 7 | . 1 . . . . . . . . . . 1 . . . . . . . . . . . 1 . 1 . 1 2 . Recyclers Shooed 6 | . . . . . 2 1 . . 1 . . 1 . . . . . . . . . . . . . . . . . 1 Parts Field Recycled . | . . . . . . . . . . . . . . . . . . . . . . . . . . . . . . . Retrieved Matter . | . . . . . . . . . . . . . . . . . . . . . . . . . . . . . . . Parts Self-Destructed 89 | . . 6 . . . . . . . . . . 12 10 2 21 . . . 11 27 . . . . . . . . . Prevented 8 | . . . . . . . . . . . . . 1 . . . . . . 5 2 . . . . . . . . . Parts Restored . | . . . . . . . . . . . . . . . . . . . . . . . . . . . . . . . Kills | -11 -10 -10 -8 -8 -6 -6 -6 -6 -6 -5 -5 -5 -5 -5 -5 -4 -4 -4 -4 -4 -4 -4 -3 -3 -3 -2 -2 -2 -1 -1 ------- Run | Yrd Mat Sub Rec Scr Fac Ext Cet Arc Hub Fac Was Fac Upp Upp Zhi Pro Fac Was Fac Upp Upp War Pro Res Tes Res Qua Sec Acc Com Combat Hostiles Destroyed 349 | . 7 4 1 6 8 18 5 . 3 1 . 12 . 5 . 5 5 . . 2 10 . 1 13 17 40 9 76 71 30 Melee 236 | . . . . 1 8 10 . . 3 . . 7 . 1 . 5 2 . . . 3 . . 8 16 24 8 52 64 24 Guns 2 | . 1 . . . . . . . . . . . . . . . . . . . . . . . . . . . 1 . Cannons 40 | . 6 4 1 5 . 3 . . . 1 . . . . . . . . . . . . . 1 . 3 1 8 3 4 AOE 52 | . . . . . . 4 1 . . . . 5 . 4 . . 3 . . 1 7 . 1 4 . 13 . 8 . 1 Classes Destroyed 29 | . 5 1 2 3 3 . . 1 1 . 1 2 . . . . . . . . 1 . . 2 1 1 2 . 2 1 Worker 16 | . . . . . . . . . . . . 2 . . . . . . . . . . . 1 2 2 . . 4 5 Builder 8 | . . . 1 . . . . . . . . 3 . . . . . . . . . . . . . . 4 . . . Tunneler 4 | . 1 . . . 1 . . . . 1 . . . . . . . . . . . . . . . 1 . . . . Hauler 7 | . 1 . . . . . . . . . . 1 . . . . . . . . . . . 1 . 1 . 1 2 . Recycler 13 | . . . . . 1 2 . . . 1 . . . . . . . . . . . . . . 1 . . 1 4 3 Carrier 2 | . . . . . . . . . . . . . . . . . . . . . . . . . 1 . . 1 . . Mechanic 3 | . . . . . . . . . . . . . . . . . . . . . . . . . . . 1 . 1 1 Operator 6 | . . . . . . . . 2 . . . . . . . . . . . . . . . . . 1 1 1 . 1 Drone 3 | . . . . . . . . . . . . . . . . . . . . . . . . . . . . . 3 . Turret 2 | . . 2 . . . . . . . . . . . . . . . . . . . . . . . . . . . . Watcher 19 | . 1 . . . 1 . 2 . . . . 1 . . . . 1 . . . . . . . 2 1 2 1 5 2 Swarmer 66 | . 2 4 . . . 2 . . . 1 . 4 . 4 . . 4 . . . 4 . . 3 2 15 . 16 . 5 Grunt 92 | . 5 . . . 2 4 . . 1 . . 2 . 1 . 1 . . . . 4 . . 1 3 7 . 21 29 11 Brawler 11 | . . . . . . . . . . . . . . . . . . . . . 1 . . . . . . 4 5 1 Duelist 9 | . . . 1 . . . . . . . . . . . . . . . . . . . . . . . . 2 6 . Protector 3 | . . . . . . . . . . . . . . . . . . . . . . . . . . . . . 3 . Sentry 35 | . . . . . 3 9 . . . . . 1 . . . 1 1 . . . 1 . . 2 3 1 1 8 4 . Demolisher 1 | . . . . . . . . . . . . . . . . . . . . . . . . 1 . . . . . . Specialist 2 | . . . . . . . . . 2 . . . . . . . . . . . . . . . . . . . . . Hunter 34 | . . . . . . . . . . . . 3 . . . 2 . . . 2 . . 1 3 2 4 2 5 10 . Programmer 67 | . . . . . 3 1 . . . . . 2 . . . 1 . . . . . . . . 7 11 5 17 11 9 Heavy 3 | . . . . . . . . . . . . . . . . . . . . . . . . . . 2 . . . 1 Cetus Guard 5 | . . . . . . . 5 . . . . . . . . . . . . . . . . . . . . . . . S7 Guard 1 | . . . . . . . . . . . . . . . . . . . . . . . . . . . . 1 . . Enhanced Grunt 1 | . . . . . . . . . . 1 . . . . . . . . . . . . . . . . . . . . Combat Programmer 2 | . . . . . . . . . . . . . . . . . . . . . . . . . . . . . . 2 Investigator 1 | . . . . . . . . . . . . . . . . . . . . . . . . . . . . . . 1 Striker 2 | . . . . . . . . . . . . . . . . . . . . . . . . 2 . . . . . . Executioner 3 | . . . . . . . . . . . . . . . . . . . . . . . . 1 . . . 2 . . Alpha 7 1 | . . . . . . . . . . . . . . . . . . . . . . . . . . . 1 . . . Federalist 3 | . . . . 3 . . . . . . . . . . . . . . . . . . . . . . . . . . Guru 1 | . . . . 1 . . . . . . . . . . . . . . . . . . . . . . . . . . Scrapper 2 | . . . . 2 . . . . . . . . . . . . . . . . . . . . . . . . . . Thug 1 | . . . . . . 1 . . . . . . . . . . . . . . . . . . . . . . . . Butcher 1 | . . . . . . 1 . . . . . . . . . . . . . . . . . . . . . . . . Martyr 1 | . . . . . . . . . . . 1 . . . . . . . . . . . . . . . . . . . Best Kill Streak 29 | . 4 5 1 5 3 5 4 1 2 1 . 12 . 4 . 3 5 . . 2 4 . 1 3 5 13 4 7 29 8 Combat Bots Only 27 | . 3 4 1 5 3 5 3 . 2 1 . 8 . 4 . 3 4 . . 2 4 . 1 3 4 12 3 7 27 6 Max Kills in Single Turn 4 | . 1 1 1 1 1 3 1 1 1 1 1 2 . 3 . 1 2 . . 1 4 . 1 2 1 4 1 4 2 2 Gunslinging . | . . . . . . . . . . . . . . . . . . . . . . . . . . . . . . . Exploded 4 | . . . . . . 3 1 . . . . 2 . 3 . . 2 . . 1 4 . 1 1 . 4 . 4 . 1 Melee 2 | . . . . 1 1 1 . . 1 . . 1 . 1 . 1 1 . . . 1 . . 1 1 1 1 2 2 2 Uniques/NPCs Destroyed 2 | . . . . . . . 1 . . . . . . . . . . . . . . . . . . . . . . 1 A7 (-6/Cetus) MAIN.C Shell (-1/Command) Combat | -11 -10 -10 -8 -8 -6 -6 -6 -6 -6 -5 -5 -5 -5 -5 -5 -4 -4 -4 -4 -4 -4 -4 -3 -3 -3 -2 -2 -2 -1 -1 -------- Run | Yrd Mat Sub Rec Scr Fac Ext Cet Arc Hub Fac Was Fac Upp Upp Zhi Pro Fac Was Fac Upp Upp War Pro Res Tes Res Qua Sec Acc Com Hostile Shots Fired 3523 | . 57 33 2 13 173 599 11 2 39 . . 87 14 14 . 92 25 . . 30 49 4 67 131 115 231 84 667 509 475 Missed 1199 | . 18 16 2 1 59 240 6 . 13 . . 22 5 8 . 30 13 . . 20 23 2 31 54 39 93 26 186 153 139 Deflected 82 | . . . . . . . . . . . . . . . . . . . . . . . . 2 3 10 6 18 23 20 Hits 2324 | . 39 17 . 12 114 359 5 2 26 . . 65 9 6 . 62 12 . . 10 26 2 36 77 76 138 58 481 356 336 Melee 56 | . . . . . . . . . . . . . . . . . . . . . 2 . . 8 . . . 20 25 1 Projectile 2268 | . 39 17 . 12 114 359 5 2 26 . . 65 9 6 . 62 12 . . 10 24 2 36 69 76 138 58 461 331 335 AOE 31 | . . . . . . . . . . . . . . . . . . . . . . . . 2 1 . . . 5 23 Critical Strikes 110 | . . . . 1 1 7 2 . . . . 2 . . . 2 . . . 4 3 . 2 5 4 2 5 22 36 12 Actively Blocked 39 | . . . . . . . . . . . . . . . . . . . . . . . . . . 1 5 17 8 8 Part Disruptions 16 | . . . . . . . . . 2 . . . . . . . . . . . . . . . 1 . . 2 2 9 Damage Taken 34198 | . 343 128 . 101 699 2766 95 49 303 51 22 1411 94 120 . 792 107 . . 133 386 21 448 1276 740 2176 776 7150 4939 9072 Core 4134 | . 75 14 . . 97 497 . 6 15 9 . 126 . 29 . 107 25 . . 11 39 . 49 147 72 163 61 992 689 911 Absorbed by Shields 15444 | . . . . 23 397 1591 37 . 4 . . 15 36 43 . 361 102 . . 91 189 23 374 968 729 1556 772 3942 2407 1784 Redirected to Shielding 46 | . . . . . . . . . . . . . . . . . . . . . . . . . . . . 46 . . Ignored by Resistances 2549 | . . . . . . . . . . . . . . . . . . . . . . . . . . . . 763 505 1281 Regen/Repaired (Parts) 5045 | . . . . . . . . 23 41 39 138 242 5 44 . 92 14 153 . 67 163 7 36 107 340 44 . 1349 1327 814 Core Remaining (%) 63 | 100 . . . 64 . . . . 27 . . . . . . 72 . . . . . . 89 . 83 . . 8 . . Volleys Fired 246 | . 31 16 2 8 4 29 10 . . 3 13 13 . 3 . 5 4 4 . 3 7 . 17 8 1 17 9 28 5 6 Largest 2 | . 2 2 2 2 1 2 1 . . 1 2 1 . 1 . 1 1 1 . 1 1 . 1 1 1 1 1 1 1 1 Hottest 142 | . 70 90 67 74 85 129 43 . . 98 142 98 . 52 . 98 43 98 . 43 120 . 120 120 120 120 120 120 120 94 Shots Fired 322 | . 62 32 4 16 4 47 10 . . 3 14 13 . 3 . 5 4 4 . 3 7 . 17 8 1 17 9 28 5 6 Gun 8 | . 8 . . . . . . . . . . . . . . . . . . . . . . . . . . . . . Cannon 246 | . 54 32 4 16 4 41 . . . 3 14 6 . . . 5 . 4 . . 1 . 14 3 1 12 9 16 3 4 Launcher 56 | . . . . . . 5 10 . . . . 7 . 3 . . 4 . . 3 6 . . . . 5 . 9 2 2 Special 12 | . . . . . . 1 . . . . . . . . . . . . . . . . 3 5 . . . 3 . . Kinetic 143 | . 58 31 4 16 . 32 . . . . 1 . . . . . . . . . . . . . . . . . . 1 Thermal 106 | . 4 1 . . 4 9 . . . 3 13 4 . . . 5 . 4 . . 1 . 14 3 1 12 9 16 3 . Explosive 46 | . . . . . . 2 . . . . . 7 . 3 . . 4 . . . 4 . 3 5 . 5 . 9 2 2 Electromagnetic 23 | . . . . . . 3 10 . . . . 2 . . . . . . . 3 2 . . . . . . . . 3 Robot Hit Streak 7 | . 7 6 7 5 . 7 3 . . 4 5 2 . . . . 3 . . 3 4 . 3 2 . . 1 6 . 7 Robot Miss Streak 16 | . 16 1 4 7 . 7 2 . . . 2 7 . . . . . 1 . . 1 . 1 1 . 2 . . . . Penetration Max . | . . . . . . . . . . . . . . . . . . . . . . . . . . . . . . . Secondary Targets . | . . . . . . . . . . . . . . . . . . . . . . . . . . . . . . . Autonomous 68 | . . . . . . . . . . . . . . . . . . . . . . . . . 6 8 1 26 12 15 Shots Hit Robots 1026 | . 26 7 2 14 31 89 6 2 11 9 5 44 . 1 2 24 11 . 2 5 18 . 11 44 60 83 34 176 194 115 Core Hits 613 | . 15 8 4 13 15 62 13 1 4 5 2 30 1 5 1 8 7 . . 8 20 . 5 28 25 64 20 100 89 60 Critical Kills . | . . . . . . . . . . . . . . . . . . . . . . . . . . . . . . . Critical Parts Destroyed . | . . . . . . . . . . . . . . . . . . . . . . . . . . . . . . . Critical Strikes 35 | . 3 . . . . 2 . . . . . . . . . . . . . . . . 1 1 2 4 . 8 12 2 Blast 3 | . 3 . . . . . . . . . . . . . . . . . . . . . . . . . . . . . Sever 2 | . . . . . . . . . . . . . . . . . . . . . . . 1 1 . . . . . . Melee Attacks 1343 | . . . . 1 48 56 3 2 17 21 1 82 . 1 2 30 10 . 7 3 30 . 11 94 103 129 51 255 252 134 Impact . | . . . . . . . . . . . . . . . . . . . . . . . . . . . . . . . Slashing 1343 | . . . . 1 48 56 3 2 17 21 1 82 . 1 2 30 10 . 7 3 30 . 11 94 103 129 51 255 252 134 Piercing . | . . . . . . . . . . . . . . . . . . . . . . . . . . . . . . . Sneak Attacks 99 | . . . . . 4 8 3 2 1 5 1 7 . . . . . . . . 1 . . 2 6 8 7 11 20 13 Combat Hostiles 16 | . . . . . . . . . . . . . . . . . . . . . . . . . 1 3 . 7 4 1 Follow-up Attacks 28 | . . . . . . . . . . . . 2 . . . . . . . . 2 . . 2 3 3 . 5 10 1 Martial Strikes 18 | . . . . . . . . . . . . . . . . . . . . . . . . 5 5 6 2 . . . Damage Inflicted 81251 | . 500 254 67 171 1446 4121 1411 205 495 468 230 3153 19 462 179 874 826 . 86 557 1928 . 963 2441 4317 8045 2507 16815 17129 11582 Guns 61 | . 61 . . . . . . . . . . . . . . . . . . . . . . . . . . . . . Cannons 8122 | . 391 254 49 168 29 1038 . . . 34 138 36 . . . . . . . . . . 83 . 503 678 114 2199 1062 1346 Explosions 11272 | . . . . . . 896 1228 . . . . 1189 . 413 . . 459 . . 431 1216 . 485 644 . 2222 . 1753 . 336 Melee 61224 | . . . . . 1414 2137 183 205 495 434 92 1928 . 49 179 874 367 . 86 126 712 . 244 1649 3794 5145 2393 12855 15963 9900 Ramming 282 | . 48 . 18 3 3 50 . . . . . . 19 . . . . . . . . . . 9 20 . . 8 104 . Kinetic 1767 | . 414 254 49 168 . 811 . . . . 38 . . . . . . . . . . . . . . . . . . 33 Thermal 1479 | . 38 . . . 29 368 569 . . 34 100 . . . . . . . . 168 49 . 83 . . . 41 . . . Explosive 8826 | . . . . . . 429 . . . . . 1189 . 413 . . 459 . . . 896 . 485 644 . 2222 . 1753 . 336 Electromagnetic 1571 | . . . . . . 326 659 . . . . 36 . . . . . . . 263 271 . . . . . . . . 16 Impact . | . . . . . . . . . . . . . . . . . . . . . . . . . . . . . . . Slashing 61514 | . . . . . 1414 2137 183 205 495 434 92 1928 . 49 179 874 367 . 86 126 712 . 395 1788 3794 5145 2393 12855 15963 9900 Piercing . | . . . . . . . . . . . . . . . . . . . . . . . . . . . . . . . Phasic 5812 | . . . . . . . . . . . . . . . . . . . . . . . . . 503 678 73 2199 1062 1297 Highest Corruption 28 | . . . . . 2 7 7 7 . . . 4 4 4 4 19 . . . . . . . . 9 4 10 22 13 28 Average Corruption 7 | . . . . . 1 5 7 5 . . . 2 4 4 4 4 . . . . . . . . 3 2 7 16 5 19 Corruption Purged 7 | . . . . . . . . 7 . . . . . . . . . . . . . . . . . . . . . . Corruption Blocked . | . . . . . . . . . . . . . . . . . . . . . . . . . . . . . . . Effects 334 | . . . . . 4 56 15 6 . . . 14 7 6 2 15 . . . . . . . . 13 8 26 73 21 68 Message Errors 87 | . . . . . . 15 4 2 . . . 5 1 1 . 2 . . . . . . . . 6 1 7 22 4 17 Matter Fused 81 | . . . . . 3 14 4 2 . . . 2 3 3 . 3 . . . . . . . . 3 2 4 16 6 16 Heat Flow Errors 38 | . . . . . . 7 2 1 . . . 4 1 . . 2 . . . . . . . . 1 1 3 7 1 8 Energy Discharges 36 | . . . . . 1 8 . . . . . 1 . . 1 2 . . . . . . . . 1 1 3 8 1 9 Parts Rejected 6 | . . . . . . 1 . . . . . . . . . . . . . . . . . . . . . 2 2 1 Parts Fused 7 | . . . . . . 1 . . . . . . . . . 2 . . . . . . . . . . . 2 . 2 Data Loss (minor) 44 | . . . . . . 6 4 1 . . . 1 2 2 1 3 . . . . . . . . 1 1 5 9 3 5 Data Loss (major) 18 | . . . . . . 2 . . . . . 1 . . . 1 . . . . . . . . 1 2 3 5 2 1 Misfires 1 | . . . . . . 1 . . . . . . . . . . . . . . . . . . . . . . . . Alerts 8 | . . . . . . 1 1 . . . . . . . . . . . . . . . . . . . 1 2 1 2 Misdirections 8 | . . . . . . . . . . . . . . . . . . . . . . . . . . . . . 1 7 Overload Shots . | . . . . . . . . . . . . . . . . . . . . . . . . . . . . . . . Overflow Damage 6301 | . . . . . 93 103 13 55 61 . . 325 . . 103 48 52 . . . 72 . . 48 562 669 231 974 1843 1049 Projectiles 553 | . . . . . . . . . . . . . . . . . . . . . . . . . 56 62 58 130 130 117 Explosions 712 | . . . . . . 21 13 . . . . 152 . . . . 48 . . . 72 . . 20 . 323 . 63 . . Melee 5036 | . . . . . 93 82 . 55 61 . . 173 . . 103 48 4 . . . . . . 28 506 284 173 781 1713 932 Knockbacks 9 | . 2 . . 1 . 5 . . . . . . . . . . . . . . . . . . . . . . 1 . Impact 3 | . 1 . . . . 1 . . . . . . . . . . . . . . . . . . . . . . 1 . Kinetic 6 | . 1 . . 1 . 4 . . . . . . . . . . . . . . . . . . . . . . . . Secondary . | . . . . . . . . . . . . . . . . . . . . . . . . . . . . . . . Self-Inflicted Damage 426 | . . . . . . 101 6 . . . . 158 . 63 . . . . . . 13 . . . . 85 . . . . Shots 9 | . . . . . . 1 1 . . . . 2 . 1 . . . . . . 1 . . . . 3 . . . . Rammed 15 | . 10 . 3 . 2 . . . . . . . . . . . . . . . . . . . . . . . . . Targets Rammed 31 | . 10 . 3 1 2 4 . . . . . . 3 . . . . . . . . . . 2 1 . . 1 4 . Kicked 15 | . . . . . . 4 . . . . . . 3 . . . . . . . . . . 2 1 . . 1 4 . Crushed 1 | . . . . 1 . . . . . . . . . . . . . . . . . . . . . . . . . . Highest Temperature 626 | . 144 1 21 177 102 626 275 148 . 128 297 265 161 36 . 285 18 174 . 12 84 . 264 164 83 290 204 260 115 243 Average Temperature 102 | . 48 1 10 99 48 131 134 81 . 58 153 125 84 18 . 139 9 79 . 6 26 . 100 59 39 92 57 110 64 89 Received Heat Transfer 3221 | . 48 36 . 58 189 1077 . . 93 12 9 54 . 12 . 15 8 . . 8 56 . 72 175 36 112 36 353 412 350 Effects 15 | . . . . . . 6 . . . . . 6 . . . . . . . . . . . . . 1 . 2 . . Shutdowns 1 | . . . . . . 1 . . . . . . . . . . . . . . . . . . . . . . . . Energy Bleed 3 | . . . . . . 2 . . . . . . . . . . . . . . . . . . . 1 . . . . Interference 8 | . . . . . . . . . . . . 6 . . . . . . . . . . . . . . . 2 . . Matter Decay 1 | . . . . . . 1 . . . . . . . . . . . . . . . . . . . . . . . . Damage (minor) 1 | . . . . . . 1 . . . . . . . . . . . . . . . . . . . . . . . . Damage (core) 1 | . . . . . . 1 . . . . . . . . . . . . . . . . . . . . . . . . Siege Activations . | . . . . . . . . . . . . . . . . . . . . . . . . . . . . . . . Martial Activations 14 | . . . . . . . . . . . . . . . . . . . . . . . . 5 3 5 1 . . . Total Turns 202 | . . . . . . . . . . . . . . . . . . . . . . . . 67 40 81 14 . . . Longest Duration 38 | . . . . . . . . . . . . . . . . . . . . . . . . 21 19 38 14 . . . Shielding Activations . | . . . . . . . . . . . . . . . . . . . . . . . . . . . . . . . Robots Disrupted 7 | . . . . . . . . . . . . . . . . . . . . . . . 1 . . 1 . 1 2 2 Combat Hostiles 7 | . . . . . . . . . . . . . . . . . . . . . . . 1 . . 1 . 1 2 2 Robots Corrupted 6 | . . . . . . 1 4 . . . . . . . . . . . . 1 . . . . . . . . . . Combat Hostiles 6 | . . . . . . 1 4 . . . . . . . . . . . . 1 . . . . . . . . . . Parts Fried 5 | . . . . . . . 4 . . . . . . . . . . . . 1 . . . . . . . . . . Impact Corruptions 2 | . . . . . . . . . . . . . . . . . . . . . . . . . . . . . 2 . Robots Melted . | . . . . . . . . . . . . . . . . . . . . . . . . . . . . . . . Combat Hostiles . | . . . . . . . . . . . . . . . . . . . . . . . . . . . . . . . Parts Melted 10 | . . . . 5 . . . . . . . 1 . . . 1 . . . . 1 . . . . . . . 1 1 Heat Transferred 1518 | . 111 . . . 37 409 400 . . 50 150 . . . . . . . . 150 100 . 74 . . . 37 . . . Parts Sabotaged 4 | . . . . . . . . . . . . . . . . . . . . . . . . . . . . 1 3 . Parts Stolen . | . . . . . . . . . . . . . . . . . . . . . . . . . . . . . . . Parts Stripped 110 | . . . . . . . . . . . . . . . . . . . . . . . . . 12 . 4 43 40 11 Power Chain Reactions 6 | . . . . . . . 3 . . . . . . . . . . . . 1 2 . . . . . . . . . Alert | -11 -10 -10 -8 -8 -6 -6 -6 -6 -6 -5 -5 -5 -5 -5 -5 -4 -4 -4 -4 -4 -4 -4 -3 -3 -3 -2 -2 -2 -1 -1 ------- Run | Yrd Mat Sub Rec Scr Fac Ext Cet Arc Hub Fac Was Fac Upp Upp Zhi Pro Fac Was Fac Upp Upp War Pro Res Tes Res Qua Sec Acc Com Maximum Alert Level 5 | . . . . . . 1 . 1 1 1 . 2 . . . . . . . . . . . 1 1 3 2 4 5 5 Low Security (%) 52 | . 100 . 100 . 100 90 100 71 70 73 100 47 . . . . 100 100 100 . . . . 95 41 24 . 1 . . Level 1 14 | . . . . . . 9 . 28 29 26 . 9 . . . . . . . . . . . 4 58 49 27 31 . . Level 2 12 | . . . . . . . . . . . . 43 . . . . . . . . . . . . . 6 72 43 6 . Level 3 10 | . . . . . . . . . . . . . . . . . . . . . . . . . . 18 . 12 50 29 Level 4 6 | . . . . . . . . . . . . . . . . . . . . . . . . . . . . 9 16 48 Level 5 2 | . . . . . . . . . . . . . . . . . . . . . . . . . . . . . 26 . High Security 1 | . . . . . . . . . . . . . . . . . . . . . . . . . . . . . . 21 Max Security . | . . . . . . . . . . . . . . . . . . . . . . . . . . . . . . . Peak Influence 1693 | . 92 . 94 . 104 272 196 228 325 247 58 533 . . . . 144 48 60 . . . . 235 300 879 468 1504 1693 1665 Initial 1080 | . . . 64 . . 4 140 52 55 149 52 . . . . . 2 38 . . . . . . 69 165 418 216 900 1080 Average 374 | . 19 . 18 . 18 76 123 161 125 160 8 286 . . . . 63 4 13 . . . . 88 194 357 415 562 1178 1297 Influence Increases 14272 | . 221 225 152 . 301 987 306 226 390 296 86 1269 . 168 12 128 171 60 83 240 557 45 67 707 611 1285 394 2270 1883 1132 Destroy 0b10 Robot/C 8080 | . 140 120 40 . 160 640 160 80 140 120 . 540 . 120 . 120 100 . 20 100 320 . 40 260 360 800 180 1580 1300 640 Destroy 0b10 Robot/NC 430 | . 15 . 5 . 15 20 10 10 5 10 . 45 . . 10 . 5 . . . . . . 10 25 30 40 20 95 60 Destroy Leader 1412 | . 34 . . . 72 54 . . 40 20 . 144 . 20 . . 22 . 10 20 30 . 10 62 54 134 34 284 264 104 Allied During Kill 1262 | . . . 8 . 1 110 114 90 185 104 . 210 . 28 2 8 . . 30 120 207 . 17 . . . . 12 . 16 Successful Hack 189 | . . . . . 7 22 . . . 8 . 17 . . . . . . . . . . . 33 36 . 2 32 32 . Select Force Hacks 90 | . . . 90 . . . . . . . . . . . . . . . . . . . . . . . . . . . Disable Machine 495 | . . . . . 30 30 . 45 15 . . 30 . . . . . . 15 . . . . 15 90 . 75 75 45 30 Anti-Garrison Action 150 | . . . . . . . . . . . . . . . . . . . . . . . . 150 . . . . . . Destroy Structure 1429 | . 2 . 9 . 16 21 22 1 5 34 86 238 . . . . 44 60 8 . . . . 132 46 291 48 162 117 87 Partial Spotted 30 | . . . . . . . . . . . . 30 . . . . . . . . . . . . . . . . . . Lose Combat Pursuer 705 | . 30 105 . . . 90 . . . . . 15 . . . . . . . . . 45 . 45 . 30 15 105 30 195 Influence Decreases 12896 | . 221 90 281 6 290 747 427 198 243 450 237 744 375 229 101 124 64 171 83 130 385 302 92 584 440 835 752 1154 1696 1445 Entered New Map 3237 | . . . 71 6 . 7 111 78 103 156 99 . 195 29 89 . 2 73 . . 21 282 25 . 54 129 326 170 602 609 Time Decay 7055 | . 221 80 210 . 209 467 206 120 100 294 60 464 140 190 12 86 62 54 83 130 254 . 67 564 386 506 386 684 634 386 Lost Part 965 | . . 10 . . 2 93 10 . 20 . . . . 10 . . . . . . . . . 20 . 30 40 260 160 310 Lost Ally 1117 | . . . . . 7 180 100 . 20 . 78 280 40 . . 38 . 44 . . 110 20 . . . 20 . 40 . 140 Purge Threat 522 | . . . . . 72 . . . . . . . . . . . . . . . . . . . . 150 . . 300 . Squads Dispatched 99 | . . . . . 5 2 . . 2 . . 15 . . . . . . . . 1 . . 8 4 6 7 15 16 18 Investigation 15 | . . . . . 1 2 . . . . . 5 . . . . . . . . . . . 4 1 . . . . 2 Extermination 32 | . . . . . 3 . . . . . . 2 . . . . . . . . . . . . 3 4 3 8 6 3 Reinforcement 22 | . . . . . . . . . 2 . . 4 . . . . . . . . . . . 4 . 2 2 4 1 3 Assault 26 | . . . . . . . . . . . . 1 . . . . . . . . 1 . . . . . 2 3 9 10 Garrison 4 | . . . . . 1 . . . . . . 3 . . . . . . . . . . . . . . . . . . Intercept . | . . . . . . . . . . . . . . . . . . . . . . . . . . . . . . . Searches Triggered . | . . . . . . . . . . . . . . . . . . . . . . . . . . . . . . . Unchained Authorized 1 | . . . . . . . . . . . . . . . . . . . . . . . . . . . . . 1 . Construction Impeded 3 | . . . . . . . . . . . . 3 . . . . . . . . . . . . . . . . . . Haulers Reinforced 5 | . . . . . . . . . . . . 1 . . . . . . . . . . . . . 1 . 2 1 . Active Scanning Responses . | . . . . . . . . . . . . . . . . . . . . . . . . . . . . . . . Cargo Convoy Interrupts . | . . . . . . . . . . . . . . . . . . . . . . . . . . . . . . . Stealth | -11 -10 -10 -8 -8 -6 -6 -6 -6 -6 -5 -5 -5 -5 -5 -5 -4 -4 -4 -4 -4 -4 -4 -3 -3 -3 -2 -2 -2 -1 -1 --------- Run | Yrd Mat Sub Rec Scr Fac Ext Cet Arc Hub Fac Was Fac Upp Upp Zhi Pro Fac Was Fac Upp Upp War Pro Res Tes Res Qua Sec Acc Com Distress Signals 32 | . 2 . . . 1 6 2 . . . . 4 . . . . . . . . . . . 6 1 1 . 3 2 4 Communications Jammed 122 | . . . . . . . . . . . . . . . . . . . . . . . . . . 34 . 47 41 . Distress Signals 111 | . . . . . . . . . . . . . . . . . . . . . . . . . . 23 . 47 41 . Times Spotted 593 | . 19 4 1 10 13 44 10 4 8 4 4 26 5 5 . 5 6 5 1 6 18 8 8 25 25 46 15 105 98 65 Peak Tracking Total 13 | . 5 5 1 6 4 12 5 2 4 1 1 7 5 4 . 3 4 4 1 5 9 6 5 7 4 11 3 8 11 13 Tactical Retreats 32 | . 1 3 . . . 6 . . . . . 1 . . . . . 2 . . . 1 . 1 . 2 1 4 3 7 Traps | -11 -10 -10 -8 -8 -6 -6 -6 -6 -6 -5 -5 -5 -5 -5 -5 -4 -4 -4 -4 -4 -4 -4 -3 -3 -3 -2 -2 -2 -1 -1 ------- Run | Yrd Mat Sub Rec Scr Fac Ext Cet Arc Hub Fac Was Fac Upp Upp Zhi Pro Fac Was Fac Upp Upp War Pro Res Tes Res Qua Sec Acc Com Traps Triggered 21 | . . . . . . 6 . . . 1 . 2 . . . . 1 . . . . . . 1 1 3 2 1 . 3 Indirectly 1 | . . . . . . 1 . . . . . . . . . . . . . . . . . . . . . . . . Trap Hack Attempts . | . . . . . . . . . . . . . . . . . . . . . . . . . . . . . . . Triggered . | . . . . . . . . . . . . . . . . . . . . . . . . . . . . . . . Disarmed . | . . . . . . . . . . . . . . . . . . . . . . . . . . . . . . . Reprogrammed . | . . . . . . . . . . . . . . . . . . . . . . . . . . . . . . . Reused . | . . . . . . . . . . . . . . . . . . . . . . . . . . . . . . . Traps Extracted . | . . . . . . . . . . . . . . . . . . . . . . . . . . . . . . . Installed . | . . . . . . . . . . . . . . . . . . . . . . . . . . . . . . . Triggered . | . . . . . . . . . . . . . . . . . . . . . . . . . . . . . . . Machines | -11 -10 -10 -8 -8 -6 -6 -6 -6 -6 -5 -5 -5 -5 -5 -5 -4 -4 -4 -4 -4 -4 -4 -3 -3 -3 -2 -2 -2 -1 -1 ---------- Run | Yrd Mat Sub Rec Scr Fac Ext Cet Arc Hub Fac Was Fac Upp Upp Zhi Pro Fac Was Fac Upp Upp War Pro Res Tes Res Qua Sec Acc Com Machines Disabled 41 | . . 2 . 1 2 2 . 3 1 . . 2 . . . . . . 1 . . 1 . 2 6 . 5 8 3 2 Max in Single Turn 2 | . . 1 . 1 1 2 . . 1 . . 1 . . . . . . 1 . . 1 . 2 1 . 1 1 1 1 Garrison Access 5 | . . . . . . . . . . 1 . 2 . . . . . . . . . . . 2 . . . . . . Energy Cycler 1 | . . . . . . 1 . . . . . . . . . . . . . . . . . . . . . . . . Machines Repaired . | . . . . . . . . . . . . . . . . . . . . . . . . . . . . . . . Machines Dismantled 3 | . . . . . . . . . . . . . . . . . . . . . . 1 . . . . . 1 1 . Machines Sabotaged . | . . . . . . . . . . . . . . . . . . . . . . . . . . . . . . . Overloaded Fab Kills . | . . . . . . . . . . . . . . . . . . . . . . . . . . . . . . . Hacking | -11 -10 -10 -8 -8 -6 -6 -6 -6 -6 -5 -5 -5 -5 -5 -5 -4 -4 -4 -4 -4 -4 -4 -3 -3 -3 -2 -2 -2 -1 -1 --------- Run | Yrd Mat Sub Rec Scr Fac Ext Cet Arc Hub Fac Was Fac Upp Upp Zhi Pro Fac Was Fac Upp Upp War Pro Res Tes Res Qua Sec Acc Com Machines Accessed 89 | . . . 3 2 6 12 . . . 4 . 9 . 3 4 . 3 . . . . 4 . 12 4 5 2 6 9 1 Terminals 36 | . . . . . 3 12 . . . . . 3 . . . . 1 . . . . . . 2 1 3 . 4 7 . Fabricators 6 | . . . . . . . . . . 2 . 1 . . . . . . . . . . . 2 1 . . . . . Repair Stations 3 | . . . . . . . . . . . . . . . . . . . . . . . . 1 . 1 1 . . . Recycling Units 9 | . . . 3 . 1 . . . . . . 3 . . . . . . . . . . . 1 . . . . . 1 Scanalyzers 11 | . . . . . 1 . . . . 1 . . . . . . 1 . . . . . . 3 2 . 1 1 1 . Garrison Access 11 | . . . . . 1 . . . . 1 . 2 . . . . 1 . . . . . . 3 . 1 . 1 1 . Total Hacks 192 | . . . 3 3 13 25 . . . 9 . 17 . 9 17 . 5 . . . . 7 . 29 11 8 6 9 16 5 Successful 90 | . . . 3 3 5 5 . . . 3 . 11 . 9 17 . . . . . . 7 . 6 4 3 3 5 6 . Failed 101 | . . . . . 8 20 . . . 6 . 6 . . . . 5 . . . . . . 22 7 5 3 4 10 5 Catastrophic 25 | . . . . . 3 4 . . . . . 1 . . . . 2 . . . . . . 5 . 2 1 2 5 . Database Lockouts 1 | . . . . . . . . . . . . . . . . . . . . . . . . 1 . . . . . . Manual 42 | . . . 3 . 4 11 1 . . 1 . 10 . . . . 2 . . . . . . 2 . 2 . 1 . 5 Terminals 75 | . . . . . 7 25 . . . . . 8 . . . . 2 . . . . . . 5 3 5 . 7 13 . Fabricators 17 | . . . . . . . . . . 5 . 3 . . . . . . . . . . . 5 4 . . . . . Repair Stations 11 | . . . . . . . . . . . . . . . . . . . . . . . . 5 . 2 4 . . . Recycling Units 14 | . . . 3 . 1 . . . . . . 4 . . . . . . . . . . . 1 . . . . . 5 Scanalyzers 24 | . . . . . 2 . . . . 3 . . . . . . 2 . . . . . . 8 4 . 2 1 2 . Garrison Access 15 | . . . . . 3 . . . . 1 . 2 . . . . 1 . . . . . . 5 . 1 . 1 1 . Terminal Hacks 58 | . . . . 3 2 5 . . . . . 3 . 9 17 . . . . . . 7 . 1 . 1 . 5 5 . Record 14 | . . . . 1 . . . . . . . . . 7 5 . . . . . . 1 . . . . . . . . Part Schematic 6 | . . . . . . 1 . . . . . 1 . . 4 . . . . . . . . . . . . . . . Robot Analysis 4 | . . . . . . . . . . . . . . . 4 . . . . . . . . . . . . . . . Prototype ID Bank 8 | . . . . . . . . . . . . . . . 4 . . . . . . 4 . . . . . . . . Open Door 12 | . . . . 1 . 2 . . . . . . . 2 . . . . . . . 2 . . . . . 3 2 . Branch Access Points 3 | . . . . . 1 . . . . . . 1 . . . . . . . . . . . . . . . . 1 . Terminal Index 1 | . . . . . . . . . . . . . . . . . . . . . . . . . . . . 1 . . Alert Level 3 | . . . . . . 1 . . . . . 1 . . . . . . . . . . . 1 . . . . . . Unreport Threat 4 | . . . . . 1 . . . . . . . . . . . . . . . . . . . . 1 . . 2 . Zone Layout 2 | . . . . . . 1 . . . . . . . . . . . . . . . . . . . . . 1 . . Proto ID Catalog 1 | . . . . 1 . . . . . . . . . . . . . . . . . . . . . . . . . . Fabricator Hacks 5 | . . . . . . . . . . . . 2 . . . . . . . . . . . 1 2 . . . . . Load Schematic 3 | . . . . . . . . . . . . 1 . . . . . . . . . . . 1 1 . . . . . Build 2 | . . . . . . . . . . . . 1 . . . . . . . . . . . . 1 . . . . . Repair Station Hacks 4 | . . . . . . . . . . . . . . . . . . . . . . . . 1 . 2 1 . . . Scan Component 3 | . . . . . . . . . . . . . . . . . . . . . . . . 1 . 1 1 . . . Repair 1 | . . . . . . . . . . . . . . . . . . . . . . . . . . 1 . . . . Recycling Unit Hacks . | . . . . . . . . . . . . . . . . . . . . . . . . . . . . . . . Scanalyzer 9 | . . . . . 2 . . . . 1 . . . . . . . . . . . . . 1 2 . 2 . 1 . Insert Component 2 | . . . . . . . . . . . . . . . . . . . . . . . . . . . 2 . . . Retrieve Study 7 | . . . . . 2 . . . . 1 . . . . . . . . . . . . . 1 2 . . . 1 . Garrison Access Hacks 4 | . . . . . . . . . . 1 . 2 . . . . . . . . . . . 1 . . . . . . Seal Access 4 | . . . . . . . . . . 1 . 2 . . . . . . . . . . . 1 . . . . . . Unauthorized Hacks 10 | . . . 3 . 1 . . . . 1 . 4 . . . . . . . . . . . 1 . . . . . . Terminals 1 | . . . . . . . . . . . . . . . . . . . . . . . . 1 . . . . . . Botnet 1 | . . . . . . . . . . . . . . . . . . . . . . . . 1 . . . . . . Fabricators 2 | . . . . . . . . . . 1 . 1 . . . . . . . . . . . . . . . . . . Prioritize 1 | . . . . . . . . . . . . 1 . . . . . . . . . . . . . . . . . . Liberate 1 | . . . . . . . . . . 1 . . . . . . . . . . . . . . . . . . . . Repair Stations . | . . . . . . . . . . . . . . . . . . . . . . . . . . . . . . . Recycling Units 7 | . . . 3 . 1 . . . . . . 3 . . . . . . . . . . . . . . . . . . Tunnel 3 | . . . 3 . . . . . . . . . . . . . . . . . . . . . . . . . . . Fedlink 2 | . . . . . 1 . . . . . . 1 . . . . . . . . . . . . . . . . . . Scrapoids 2 | . . . . . . . . . . . . 2 . . . . . . . . . . . . . . . . . . Scanalyzers . | . . . . . . . . . . . . . . . . . . . . . . . . . . . . . . . Garrison Access . | . . . . . . . . . . . . . . . . . . . . . . . . . . . . . . . Data Cores Recovered 3 | . . . . . . . . . . . . . . . . . . . . . . . . . . 1 1 1 . . Used . | . . . . . . . . . . . . . . . . . . . . . . . . . . . . . . . Hacking Detections 62 | . . . . . 5 11 . . . 3 . 5 . . . . 3 . . . . . . 11 4 5 2 4 8 1 Full Trace Events 7 | . . . . . . 2 . . . . . 1 . . . . . . . . . . . 2 1 . . . . 1 Feedback Events . | . . . . . . . . . . . . . . . . . . . . . . . . . . . . . . . Feedback Blocked . | . . . . . . . . . . . . . . . . . . . . . . . . . . . . . . . Robot Schematics Acquired . | . . . . . . . . . . . . . . . . . . . . . . . . . . . . . . . Robots Built . | . . . . . . . . . . . . . . . . . . . . . . . . . . . . . . . Authchips . | . . . . . . . . . . . . . . . . . . . . . . . . . . . . . . . Time . | . . . . . . . . . . . . . . . . . . . . . . . . . . . . . . . Total Robot Build Rating . | . . . . . . . . . . . . . . . . . . . . . . . . . . . . . . . Part Schematics Acquired 18 | . . . . . 7 1 . . . . . 1 . . 4 . . . . . . . . . . . . 5 . . Parts Built 4 | . . . . . . . . . . . . 2 . . . . . . . . . . . . 2 . . . . . Authchips . | . . . . . . . . . . . . . . . . . . . . . . . . . . . . . . . Time 126 | . . . . . . . . . . . . 42 . . . . . . . . . . . . 84 . . . . . Total Part Build Rating 16 | . . . . . . . . . . . . 8 . . . . . . . . . . . . 8 . . . . . Part Studies Acquired 7 | . . . . . 2 . . . . 1 . . . . . . . . . . . . . 1 2 . . . 1 . Parts Repaired 1 | . . . . . . . . . . . . . . . . . . . . . . . . . . 1 . . . . Time 68 | . . . . . . . . . . . . . . . . . . . . . . . . . . 68 . . . . Parts Recycled . | . . . . . . . . . . . . . . . . . . . . . . . . . . . . . . . Recycled Matter . | . . . . . . . . . . . . . . . . . . . . . . . . . . . . . . . Retrieved Matter . | . . . . . . . . . . . . . . . . . . . . . . . . . . . . . . . Retrieved Components . | . . . . . . . . . . . . . . . . . . . . . . . . . . . . . . . Parts Scanalyzed . | . . . . . . . . . . . . . . . . . . . . . . . . . . . . . . . Part Schematics Acquired . | . . . . . . . . . . . . . . . . . . . . . . . . . . . . . . . Parts Damaged . | . . . . . . . . . . . . . . . . . . . . . . . . . . . . . . . Bothacking | -11 -10 -10 -8 -8 -6 -6 -6 -6 -6 -5 -5 -5 -5 -5 -5 -4 -4 -4 -4 -4 -4 -4 -3 -3 -3 -2 -2 -2 -1 -1 ------------ Run | Yrd Mat Sub Rec Scr Fac Ext Cet Arc Hub Fac Was Fac Upp Upp Zhi Pro Fac Was Fac Upp Upp War Pro Res Tes Res Qua Sec Acc Com Used RIF Installer . | . . . . . . . . . . . . . . . . . . . . . . . . . . . . . . . Robots Hacked 1 | . . . . . . . . . . . . . . . . . . . . . . . . . . . . 1 . . Non-combat . | . . . . . . . . . . . . . . . . . . . . . . . . . . . . . . . Combat . | . . . . . . . . . . . . . . . . . . . . . . . . . . . . . . . Robot Hacks Applied . | . . . . . . . . . . . . . . . . . . . . . . . . . . . . . . . Manual 1 | . . . . . . . . . . . . . . . . . . . . . . . . . . . . 1 . . Relay Couplers Released 2 | . . . . . . . . . . . . . . . . . . . . . . . . 2 . . . . . . Machine Destruction 2 | . . . . . . . . . . . . . . . . . . . . . . . . 2 . . . . . . Fabnet Peak Effective % . | . . . . . . . . . . . . . . . . . . . . . . . . . . . . . . . Robots Rewired 35 | . . . 12 . . 18 . . . . . . . . . . . . . . 2 . 1 . . 1 . 1 . . Allies Hacked 2 | . . . . . . . . . . . . 2 . . . . . . . . . . . . . . . . . . Hacks Repelled . | . . . . . . . . . . . . . . . . . . . . . . . . . . . . . . . Allies | -11 -10 -10 -8 -8 -6 -6 -6 -6 -6 -5 -5 -5 -5 -5 -5 -4 -4 -4 -4 -4 -4 -4 -3 -3 -3 -2 -2 -2 -1 -1 -------- Run | Yrd Mat Sub Rec Scr Fac Ext Cet Arc Hub Fac Was Fac Upp Upp Zhi Pro Fac Was Fac Upp Upp War Pro Res Tes Res Qua Sec Acc Com Total Allies 100 | . . . 12 . . 21 5 . . 3 17 10 . . . . . 19 . . 2 . 1 . . 1 . 2 . 7 Largest Group 19 | . . . 12 12 8 8 8 6 6 7 17 12 6 2 2 2 . 19 12 12 10 5 3 . . 1 . 1 . 7 Highest-Rated Group 723 | . . . 184 184 112 331 662 493 493 436 723 519 282 94 94 94 . 702 451 448 400 190 202 . . 64 . 219 . 95 Highest-Rated Ally 219 | . . . 34 34 34 159 143 96 96 96 96 96 47 47 47 47 . 50 46 46 47 47 116 . . 64 . 219 . 15 Initial UFD Resources 52 | . . . . . 22 32 32 32 32 36 36 36 40 40 40 42 42 42 42 42 42 42 46 46 46 50 50 50 52 52 Total Orders 13 | . . . 2 7 2 . . . . . . . . . . . . . . . . . . . . 2 . . . . STAY 5 | . . . 1 2 1 . . . . . . . . . . . . . . . . . . . . 1 . . . . FOLLOW 5 | . . . 1 3 . . . . . . . . . . . . . . . . . . . . . 1 . . . . AID 3 | . . . . 2 1 . . . . . . . . . . . . . . . . . . . . . . . . . Ally Attacks 789 | . . . 3 7 2 116 17 37 15 19 122 123 18 5 . 11 . 105 11 25 77 3 25 . . 2 . 7 . 39 Total Damage 23967 | . . . 64 294 52 2702 590 1306 434 717 4724 3449 223 90 . 299 . 3906 231 596 2506 61 522 . . . . 507 . 694 Kills 91 | . . . 1 4 . 16 3 4 5 6 7 17 2 1 . 1 . 9 1 3 7 . 1 . . . . 2 . 1 Allies Corrupted 6 | . . . . . . . . . . . . 3 . . . . . . . . 1 1 . . . . . 1 . . Allies Melted 5 | . . . . 2 . . . . . . . . . . . . . . . . 1 2 . . . . . . . . Intel | -11 -10 -10 -8 -8 -6 -6 -6 -6 -6 -5 -5 -5 -5 -5 -5 -4 -4 -4 -4 -4 -4 -4 -3 -3 -3 -2 -2 -2 -1 -1 ------- Run | Yrd Mat Sub Rec Scr Fac Ext Cet Arc Hub Fac Was Fac Upp Upp Zhi Pro Fac Was Fac Upp Upp War Pro Res Tes Res Qua Sec Acc Com Active Infowar (turns) 22769 | . . . . . 969 1958 429 242 213 641 463 1242 288 394 195 639 190 465 302 326 604 1112 832 2176 911 1360 916 2737 2029 1136 Optics 18457 | . . . . . 969 1958 429 242 213 641 463 1114 288 394 195 639 190 465 302 326 604 1112 832 2176 904 1360 814 1827 . . Sensors 15163 | . . . . . 702 757 . . . 641 463 687 288 394 193 530 161 465 302 326 489 1112 746 1851 692 1002 317 2189 856 . Decoding 8777 | . . . . . . . . . . . . . . . . . . . . . . . . 2176 911 1360 916 2737 677 . Machine Analysis 1941 | . . . . . 397 1544 . . . . . . . . . . . . . . . . . . . . . . . . Cloaking 3054 | . . . . . . . . . . . . . . . . . . . . . . . . . . . . . 1918 1136 Jamming 3646 | . . . . . . . . . . . . . . . . . . . . . . . . . . 1360 916 792 578 . Robot Analysis Total 4 | . . . . . . . . . . . . . . . 4 . . . . . . . . . . . . . . . Derelict Logs Recovered 7 | . . 1 . . . . . . . . . . . 1 . 2 . . . 2 1 . . . . . . . . . Drone Launches . | . . . . . . . . . . . . . . . . . . . . . . . . . . . . . . . Drone Recoveries . | . . . . . . . . . . . . . . . . . . . . . . . . . . . . . . . Decoded 0b10 Intel 488 | . . . . . . . . . . . . . . . . . . . . . . . . 146 48 89 49 113 43 . Items 488 | . . . . . . . . . . . . . . . . . . . . . . . . 146 48 89 49 113 43 . Exploration | -11 -10 -10 -8 -8 -6 -6 -6 -6 -6 -5 -5 -5 -5 -5 -5 -4 -4 -4 -4 -4 -4 -4 -3 -3 -3 -2 -2 -2 -1 -1 ------------- Run | Yrd Mat Sub Rec Scr Fac Ext Cet Arc Hub Fac Was Fac Upp Upp Zhi Pro Fac Was Fac Upp Upp War Pro Res Tes Res Qua Sec Acc Com Turns Passed 27896 | . 1080 314 931 2484 975 1958 429 242 213 641 463 1242 288 394 195 639 190 465 302 326 604 1112 832 2176 911 1360 916 2737 2225 1252 Spaces Moved 18134 | 1 564 164 479 1385 565 1140 194 92 136 500 326 817 242 324 148 438 146 299 243 260 475 807 383 1866 710 880 666 1589 1587 708 Core . | . . . . . . . . . . . . . . . . . . . . . . . . . . . . . . . Treads 2718 | . 560 164 479 1304 211 . . . . . . . . . . . . . . . . . . . . . . . . . Legs 15335 | 1 4 . . . 354 1140 194 92 136 500 326 817 242 324 148 438 146 299 243 260 475 807 383 1866 710 880 666 1589 1587 708 Wheels 81 | . . . . 81 . . . . . . . . . . . . . . . . . . . . . . . . . . Hover . | . . . . . . . . . . . . . . . . . . . . . . . . . . . . . . . Flight . | . . . . . . . . . . . . . . . . . . . . . . . . . . . . . . . Fastest Speed 92 | 120 120 160 152 140 116 118 122 122 112 108 108 108 116 116 116 105 105 105 105 105 105 101 101 92 100 100 100 92 92 105 Average Speed 116 | 120 159 160 156 151 132 124 122 122 118 112 108 112 116 116 117 113 105 105 105 105 105 103 101 98 101 101 114 114 98 124 Slowest Speed 330 | 120 160 160 160 152 190 191 122 122 122 115 115 116 116 118 118 116 105 177 105 105 177 177 101 200 200 200 250 186 179 330 Overloaded Moves 22 | . . . . . . . . . . . . . . . . . . . . . . . . 6 3 9 4 . . . Propulsion Burnouts . | . . . . . . . . . . . . . . . . . . . . . . . . . . . . . . . Robots Hopped . | . . . . . . . . . . . . . . . . . . . . . . . . . . . . . . . Potential Cave-ins 28 | . . . . . . . . . . . 2 . . . . 4 . . . . . . 2 . . 4 . . 16 . Cave-ins Triggered . | . . . . . . . . . . . . . . . . . . . . . . . . . . . . . . . Teleports 5 | . . . . . . . . . . . . . . . . . . . . . . . . . . . . 5 . . Exploration Rate (%) 53 | 2 93 10 72 85 19 86 60 86 12 15 96 22 43 52 61 60 7 95 5 53 65 92 59 71 91 36 70 83 32 29 Regions Visited 30 Branch Regions 19 Pre-discovered Areas 8 | . . . 3 . . . . . . . . 1 . 1 3 . . . . . . . . . . . . . . . Known Exits Taken 21 | . . . . . 1 1 1 1 1 . . 1 1 1 1 1 . . 1 1 1 1 1 1 1 1 1 1 1 . Unknown Exits Taken 5 | 1 1 1 1 1 . . . . . . . . . . . . . . . . . . . . . . . . . . Scrap Searched 21 | . . . . 7 . . . . . . . . 1 3 . 2 . . . 2 4 . 2 . . . . . . . Spaces Dug 263 | . . . . . 7 . . . 2 13 3 29 . . . 2 . 1 4 . 6 . 9 35 22 31 11 31 48 9 Terrain Destroyed 923 | . . . . . 9 30 38 . 2 15 10 106 . 93 . 7 23 4 4 12 82 . 33 99 23 114 16 75 93 35 Melee 249 | . . . . . 6 . . . 2 13 . 29 . . . 2 . . 4 . 5 . 2 35 22 31 11 30 48 9 Projectile 83 | . . . . . 3 2 . . . 2 10 3 . . . 5 . 4 . . 1 . 12 4 1 12 5 16 3 . AOE 591 | . . . . . . 28 38 . . . . 74 . 93 . . 23 . . 12 76 . 19 60 . 71 . 29 42 26 Terrain Rammed . | . . . . . . . . . . . . . . . . . . . . . . . . . . . . . . . Walls Destroyed . | . . . . . . . . . . . . . . . . . . . . . . . . . . . . . . . Machines Disabled . | . . . . . . . . . . . . . . . . . . . . . . . . . . . . . . . Actions | -11 -10 -10 -8 -8 -6 -6 -6 -6 -6 -5 -5 -5 -5 -5 -5 -4 -4 -4 -4 -4 -4 -4 -3 -3 -3 -2 -2 -2 -1 -1 --------- Run | Yrd Mat Sub Rec Scr Fac Ext Cet Arc Hub Fac Was Fac Upp Upp Zhi Pro Fac Was Fac Upp Upp War Pro Res Tes Res Qua Sec Acc Com Total 23757 | . 683 183 655 1760 715 1554 371 220 162 544 417 1033 248 336 168 556 172 443 282 305 552 1078 802 2128 869 1302 808 2329 2097 985 Wait 2676 | . 44 2 14 328 28 135 140 117 1 6 60 77 3 1 . 54 2 130 32 33 23 243 377 77 28 228 26 297 109 61 Move 18107 | . 563 163 478 1385 564 1139 193 91 135 500 325 816 241 323 147 437 146 298 242 259 474 806 382 1865 709 879 665 1588 1586 708 Hop . | . . . . . . . . . . . . . . . . . . . . . . . . . . . . . . . Pick Up 202 | . 10 . 7 13 13 16 6 . 1 2 1 6 . 3 3 . 2 . . 1 . 5 . 14 6 6 8 31 35 13 Fast Attach 150 | . 5 . 1 . 6 10 4 4 3 4 5 5 . . 5 6 . 1 . . . 3 . 9 3 6 6 36 21 7 Attach 155 | . . 1 . 1 9 12 1 . 2 2 . 4 1 2 . 3 3 1 . 1 3 2 3 9 2 14 14 32 19 14 Detach 95 | . 3 . . 1 3 4 1 2 1 1 2 4 . 1 . 3 1 2 . 1 3 1 3 3 2 10 14 15 9 5 Swap 240 | . 5 1 1 9 21 23 4 1 . 1 4 13 . . 3 13 4 6 1 3 8 1 8 25 10 13 7 14 23 18 Drop 244 | . 12 . 4 14 17 14 9 3 2 4 6 13 . 2 8 5 . 1 . 1 . 9 . 24 12 6 10 32 28 8 Fire 246 | . 31 16 2 8 4 29 10 . . 3 13 13 . 3 . 5 4 4 . 3 7 . 17 8 1 17 9 28 5 6 Melee 1286 | . . . . 1 48 56 3 2 17 21 1 80 . 1 2 30 10 . 7 3 28 . 10 87 95 120 49 244 242 129 Ram . | . . . . . . . . . . . . . . . . . . . . . . . . . . . . . . . Kick 15 | . . . . . . 4 . . . . . . 3 . . . . . . . . . . 2 1 . . 1 4 . Crush 15 | . 10 . 3 . 2 . . . . . . . . . . . . . . . . . . . . . . . . . Escape Stasis 25 | . . . . . . 2 . . . . . 2 . . . . . . . . . . . 5 . . . . . 16 Rewire 267 | . . . 145 . . 110 . . . . . . . . . . . . . . 6 . 2 . . 3 . 1 . . Trap . | . . . . . . . . . . . . . . . . . . . . . . . . . . . . . . . Miscellaneous 34 | . . . . . . . . . . . . . . . . . . . . . . 8 . . . . . 10 16 . Route ------- -11/Scrapyard -10/Materials (discovered 5 exits: [*Mat x2] / [*Min x2] / [*Sub]) -10/Subcaves -8/Recycling (discovered 2 exits: *Fac / *Scr) -8/Scraptown (discovered 2 exits: *Fac x2) -6/Factory (discovered 5 exits: *Fac / Low x2 / *Ext x2) -6/Extension (discovered 2 exits: *Fac / *Cet) -6/Cetus (discovered 2 exits: *Fac / *Arc) -6/Archives (discovered 3 exits: *Fac / *Hub x2) -6/Hub_04(d) -5/Factory -5/Waste -5/Factory (discovered 2 exits: *Upp x2) -5/Upper Caves -5/Upper Caves -5/Zhirov -4/Proximity Caves -4/Factory -4/Waste -4/Factory -4/Upper Caves -4/Upper Caves -4/Warlord -3/Proximity Caves -3/Research (discovered 5 exits: *Res x3 / *Tes x2) -3/Testing -2/Research (discovered 2 exits: *Acc / *Qua) -2/Quarantine (discovered 3 exits: *Acc / *Sec / [*Frg]) -2/Section 7 -1/Access -1/Command History --------- Turn | Location | Event 1 | -11/Scrapyard | Discovered new exit (range 0) 1 | -11/Scrapyard | Entered Materials 221 | -10/Materials | Discovered new exit (range 15) 318 | -10/Materials | Build established: Mutant 777 | -10/Materials | Discovered new exit (range 16) 842 | -10/Materials | Discovered new exit (range 16) 993 | -10/Materials | Discovered new exit (range 13) 1071 | -10/Materials | Discovered new exit (range 7) 1081 | -10/Materials | Entered Subcaves 1294 | -10/Subcaves | Discovered new exit (range 16) 1302 | -10/Subcaves | Learned Materials emergency access door positions 1395 | -10/Subcaves | Entered Recycling 1533 | -8/Recycling | Discovered new exit (range 10) 2085 | -8/Recycling | Build established: Commander-Mutant 2273 | -8/Recycling | Scanned before Scraplab entrance 2295 | -8/Recycling | Entered Scraplab 2307 | -8/Recycling | Discovered new exit (range 3) 2326 | -8/Recycling | Entered Scraptown 2326 | -8/Scraptown | Accompanied by 12 allies 2433 | -8/Scraptown | Visited UFD Registry 2433 | -8/Scraptown | Registered with UFD as "Deathshaft" 2442 | -8/Scraptown | Heard Great Nut preacher, LISTEN AND RECITE! 2468 | -8/Scraptown | Visited Scrapoid Pod Storage 2489 | -8/Scraptown | Visited Curators Association 2539 | -8/Scraptown | Visited Sword Containment 2564 | -8/Scraptown | Found Prototype Slashing Weapon 2565 | -8/Scraptown | Identified Companion Sword 2598 | -8/Scraptown | Visited Research Penetration Think Tank 2630 | -8/Scraptown | Visited Derelict Rescue Squad 2640 | -8/Scraptown | Found DRS Beacon 2666 | -8/Scraptown | Visited Scrapoid Research Area 2680 | -8/Scraptown | Visited Science Guys 2755 | -8/Scraptown | Visited A0-MCA Data Center 2779 | -8/Scraptown | Visited Observation Area 3302 | -8/Scraptown | Discovered new exit (range 11) 3399 | -8/Scraptown | Visited SPCMW 3410 | -8/Scraptown | Visited Cave Peace 3431 | -8/Scraptown | Visited Awakened 3442 | -8/Scraptown | Visited Bundlers 3591 | -8/Scraptown | Visited Fellowship of the Rings 3892 | -8/Scraptown | Given a B rating by A0-MCA 3900 | -8/Scraptown | Found A0-MCA's Component Scanner 4285 | -8/Scraptown | Met Optimus 4285 | -8/Scraptown | Accepted into 0bPrime 4685 | -8/Scraptown | Civil war broke out across Scraptown 4694 | -8/Scraptown | Found Prototype Processor 4775 | -8/Scraptown | Discovered new exit (range 13) 4810 | -8/Scraptown | Entered Factory 4810 | -6/Factory | Accompanied by 8 allies 4810 | -6/Factory | Evolved 8 slots: Propulsion x2, Utility x6 4811 | -6/Factory | Lost 15 allies 4813 | -6/Factory | Identified Expert System 4871 | -6/Factory | Tech Extrapolator generated special schematic: Deep Structural Scanner 4945 | -6/Factory | Loaded intel: 8 recycling unit locations 5172 | -6/Factory | Garrison activated, responded to threat 5490 | -6/Factory | Discovered new exit (range 10) 5503 | -6/Factory | Identified exit to Factory 5518 | -6/Factory | Identified exit to Lower Caves 5518 | -6/Factory | Identified exit to Extension 5785 | -6/Factory | Entered Extension 6259 | -6/Extension | Rescued a captive Derelict 6272 | -6/Extension | Rescued a captive Derelict 6535 | -6/Extension | Spotted B-75 Beast 6574 | -6/Extension | Core integrity fell below 50% 6575 | -6/Extension | Allies destroyed B-75 Beast 6607 | -6/Extension | Spotted B-75 Beast 6898 | -6/Extension | Build established: Mutant 7023 | -6/Extension | Energy Cycler disabled 7023 | -6/Extension | Rescued a captive Derelict 7025 | -6/Extension | Rescued a captive Derelict 7025 | -6/Extension | Rescued a captive Derelict 7026 | -6/Extension | Rescued a captive Derelict 7028 | -6/Extension | Rescued a captive Derelict 7029 | -6/Extension | Rescued a captive Derelict 7029 | -6/Extension | Rescued a captive Derelict 7036 | -6/Extension | Rescued A7 7082 | -6/Extension | Attached CPS modules to A7 7088 | -6/Extension | Lost 9 parts (2p3n2u2w) 7361 | -6/Extension | Lost 6 allies 7541 | -6/Extension | P-60 Hacker assimilated allied DB-YPI(g) 7698 | -6/Extension | Discovered exit to Factory (range 10) 7700 | -6/Extension | Discovered new exit (range 6) 7713 | -6/Extension | Build established: Scavenger-Mutant 7742 | -6/Extension | Identified exit to Cetus 7743 | -6/Extension | Entered Cetus 7743 | -6/Cetus | Accompanied by 7 allies (A7) 7748 | -6/Cetus | Acquired a Cetus Manufacturing Module code from A7 7763 | -6/Cetus | Spotted Cetus Guard 7764 | -6/Cetus | Spotted Cetus Guard 7765 | -6/Cetus | Spotted Cetus Guard 7774 | -6/Cetus | Spotted Cetus Guard 7782 | -6/Cetus | Allies destroyed Cetus Guard 7782 | -6/Cetus | Destroyed Cetus Guard 7786 | -6/Cetus | Destroyed Cetus Guard 7788 | -6/Cetus | Destroyed Cetus Guard 7814 | -6/Cetus | Lost 4 allies 7868 | -6/Cetus | Started Cetus Manufacturing Module 7893 | -6/Cetus | Manufactured an Enhanced Grunt 7918 | -6/Cetus | Manufactured an Enhanced Grunt 7943 | -6/Cetus | Manufactured an Enhanced Grunt 7968 | -6/Cetus | Manufactured an Enhanced Grunt 7978 | -6/Cetus | Discovered new exit (range 22) 7993 | -6/Cetus | Manufactured an Enhanced Grunt 8021 | -6/Cetus | Spotted Cetus Guard 8022 | -6/Cetus | Spotted Cetus Guard 8025 | -6/Cetus | Spotted Cetus Guard 8027 | -6/Cetus | Discovered exit to Factory (range 22) 8028 | -6/Cetus | Spotted Cetus Guard 8032 | -6/Cetus | Allies destroyed Cetus Guard 8036 | -6/Cetus | Allies destroyed Cetus Guard 8037 | -6/Cetus | Destroyed Cetus Guard 8042 | -6/Cetus | Expert System configures itself against Cetus Guard targets 8042 | -6/Cetus | Destroyed Cetus Guard 8056 | -6/Cetus | Met Revision 17 8071 | -6/Cetus | Murdered A7 8075 | -6/Cetus | Extracted ID and sensor layout for unrecognized location from A7's data core 8079 | -6/Cetus | Found Prototype Protection 8079 | -6/Cetus | Identified Med. Regenerative Plating 8145 | -6/Cetus | Identified exit to Archives 8172 | -6/Cetus | Entered Archives 8172 | -6/Archives | Accompanied by 6 allies 8241 | -6/Archives | Discovered exit to Factory (range 20) 8244 | -6/Archives | Discovered new exit (range 17) 8259 | -6/Archives | Discovered new exit (range 16) 8406 | -6/Archives | Identified exit to Hub_04(d) 8414 | -6/Archives | Entered Hub_04(d) 8414 | -6/Hub_04(d) | Accompanied by 6 allies 8563 | -6/Hub_04(d) | Discovered exit to Factory (range 19) 8627 | -6/Hub_04(d) | Entered Factory 8627 | -5/Factory | Accompanied by 5 allies 8627 | -5/Factory | Evolved 2 slots: Power x1, Utility x1 8926 | -5/Factory | Build established: Scavenger-Assassin 9268 | -5/Factory | Sucked down chute 9268 | -5/Factory | Entered Waste 9269 | -5/Waste | Met a frightened Derelict 9283 | -5/Waste | 1 allies followed down the chute 9293 | -5/Waste | Found Fusion Bomb Launcher 9313 | -5/Waste | Spotted C-40 Crusher 9343 | -5/Waste | Allies destroyed C-40 Crusher 9350 | -5/Waste | Warlord forces began an assault 9366 | -5/Waste | Lost 5 allies 9438 | -5/Waste | Spotted C-40 Crusher 9458 | -5/Waste | 3 allies followed down the chute 9464 | -5/Waste | Allies destroyed C-40 Crusher 9491 | -5/Waste | Spotted C-40 Crusher 9492 | -5/Waste | Lost 3 allies 9509 | -5/Waste | Allies destroyed C-40 Crusher 9545 | -5/Waste | Spotted C-40 Crusher 9556 | -5/Waste | Allies destroyed C-40 Crusher 9672 | -5/Waste | Discovered new exit (range 13) 9695 | -5/Waste | Identified exit to Factory 9731 | -5/Waste | Entered Factory 9731 | -5/Factory | Accompanied by 12 allies 9758 | -5/Factory | Loaded intel: 8 recycling unit locations 9758 | -5/Factory | Learned location of Protoforge (-2) 9943 | -5/Factory | Identified exit to Upper Caves 10071 | -5/Factory | Lost 3 allies 10277 | -5/Factory | Spotted B-75 Beast 10328 | -5/Factory | Build established: Scavenger-Mutant 10402 | -5/Factory | Lost 3 allies 10426 | -5/Factory | Destroyed 8 combat bots 10595 | -5/Factory | Fabricated Microactuators (x2) 10874 | -5/Factory | Scrapoids reinforcements arrived? 10909 | -5/Factory | Scrapoid reinforcements arrived 10931 | -5/Factory | First assault squad dispatched 10973 | -5/Factory | Entered Upper Caves 10973 | -5/Upper Caves | Accompanied by 6 allies 11204 | -5/Upper Caves | Build established: Commander-Assassin 11243 | -5/Upper Caves | Discovered new exit (range 11) 11256 | -5/Upper Caves | Identified exit to Upper Caves 11261 | -5/Upper Caves | Entered another Upper Caves area 11261 | -5/Upper Caves | Accompanied by 2 allies 11289 | -5/Upper Caves | Lost 4 allies 11437 | -5/Upper Caves | Entered an active Warlord outpost 11454 | -5/Upper Caves | Learned 8 Factory zone layouts 11454 | -5/Upper Caves | Learned 8 Research zone layouts 11454 | -5/Upper Caves | Learned Armory trap positions 11454 | -5/Upper Caves | Learned Armory stockpile data 11462 | -5/Upper Caves | Learned location of 1 exit from Factory 11639 | -5/Upper Caves | Discovered new exit (range 6) 11644 | -5/Upper Caves | Identified exit to Zhirov 11655 | -5/Upper Caves | Entered Zhirov 11655 | -5/Zhirov | Accompanied by 2 allies 11655 | -5/Zhirov | Discovered new exit (range 3) 11677 | -5/Zhirov | Met Zhirov 11698 | -5/Zhirov | Learned location of Quarantine (-2) 11698 | -5/Zhirov | Learned location of Testing (-3) 11698 | -5/Zhirov | Learned location of Command (-1) 11709 | -5/Zhirov | Zhirov requested help retrieving the SGEMP Prototype 11727 | -5/Zhirov | Found Alien Artifact 11727 | -5/Zhirov | Identified Integrated Reactor 11727 | -5/Zhirov | Installed Integrated Reactor, increased core energy generation (+10) 11744 | -5/Zhirov | Found Alien Artifact 11813 | -5/Zhirov | Build established: Assassin 11849 | -5/Zhirov | Identified exit to Proximity Caves 11850 | -5/Zhirov | Entered Proximity Caves 11850 | -4/Proximity Caves | Accompanied by 2 allies 11887 | -4/Proximity Caves | Attracted the attention of an 0b10 checkpoint 12178 | -4/Proximity Caves | Spotted B-86 Titan 12246 | -4/Proximity Caves | Learned Research trap positions 12310 | -4/Proximity Caves | Ambushed by research squad 12384 | -4/Proximity Caves | Learned Research terminal intel 12473 | -4/Proximity Caves | Discovered new exit (range 10) 12482 | -4/Proximity Caves | Identified exit to Factory 12484 | -4/Proximity Caves | System corruption reached 10% 12489 | -4/Proximity Caves | Entered Factory 12489 | -4/Factory | Evolved 2 slots: Utility x2 12490 | -4/Factory | Identified exit to Research 12679 | -4/Factory | Sucked down chute 12679 | -4/Factory | Entered Waste 12721 | -4/Waste | Spotted C-40 Crusher 12721 | -4/Waste | Spotted C-40 Crusher 12735 | -4/Waste | Spotted C-40 Crusher 12745 | -4/Waste | Spotted C-40 Crusher 12767 | -4/Waste | Spotted C-40 Crusher 12802 | -4/Waste | Spotted C-40 Crusher 12917 | -4/Waste | Warlord forces began an assault 12930 | -4/Waste | Allies destroyed C-40 Crusher 12970 | -4/Waste | Lost 5 allies 13097 | -4/Waste | Discovered new exit (range 13) 13140 | -4/Waste | Identified exit to Factory 13144 | -4/Waste | Entered Factory 13144 | -4/Factory | Accompanied by 12 allies 13181 | -4/Factory | Discovered new exit (range 6) 13187 | -4/Factory | Identified exit to Upper Caves 13228 | -4/Factory | Build established: Scavenger-Assassin 13446 | -4/Factory | Entered Upper Caves 13446 | -4/Upper Caves | Accompanied by 12 allies 13451 | -4/Upper Caves | Learned Research emergency access door positions 13558 | -4/Upper Caves | Attracted the attention of an 0b10 checkpoint 13576 | -4/Upper Caves | Identified exit to Upper Caves 13772 | -4/Upper Caves | Entered another Upper Caves area 13772 | -4/Upper Caves | Accompanied by 10 allies 13827 | -4/Upper Caves | Spotted B-86 Titan 13865 | -4/Upper Caves | Allies destroyed B-86 Titan 14096 | -4/Upper Caves | Attracted the attention of an 0b10 outpost 14154 | -4/Upper Caves | Lost 5 allies 14325 | -4/Upper Caves | Discovered new exit (range 22) 14364 | -4/Upper Caves | Identified exit to Warlord 14376 | -4/Upper Caves | Entered Warlord 14376 | -4/Warlord | Accompanied by 5 allies 14539 | -4/Warlord | Found RU-N14's Throwing Claymores v3 14544 | -4/Warlord | Found RU-N14's Throwing Claymores v3 14880 | -4/Warlord | Warlord's base attacked by MAIN.C 14899 | -4/Warlord | Rebuked by Warlord 14928 | -4/Warlord | Found Vortex Chain Reactor 15230 | -4/Warlord | Warlord forces counterattacked 15446 | -4/Warlord | Opened side exit 15464 | -4/Warlord | Spotted Executioner 15466 | -4/Warlord | Discovered new exit (range 9) 15472 | -4/Warlord | Identified exit to Proximity Caves 15488 | -4/Warlord | Entered Proximity Caves 15488 | -3/Proximity Caves | Accompanied by 2 allies 15516 | -3/Proximity Caves | Lost 3 allies 15795 | -3/Proximity Caves | Received a Behemoth hack from an annoying Tinkerer 16040 | -3/Proximity Caves | Spotted B-86 Titan 16059 | -3/Proximity Caves | Rewired B-86 Titan 16303 | -3/Proximity Caves | Discovered exit to Research (range 11) 16320 | -3/Proximity Caves | Entered Research 16320 | -3/Research | Evolved 2 slots: Power x1, Utility x1 16321 | -3/Research | Identified exit to Research 16322 | -3/Research | Loaded intel: 64 trap records 16324 | -3/Research | Loaded intel: 22 terminal locations 16348 | -3/Research | Lost 3 allies 16520 | -3/Research | Revision forces began assault on 0b10 16575 | -3/Research | Found Fusion Bomb Launcher 16652 | -3/Research | Met up with Revision 17++ 16775 | -3/Research | Discovered exit to Research (range 21) 16915 | -3/Research | Found Spectral Analyzer 16920 | -3/Research | Found Exp. System Shield 16980 | -3/Research | Spotted B-86 Titan 17020 | -3/Research | Research terminal network offline 17202 | -3/Research | Found Exp. Signal Interpreter 17283 | -3/Research | Spotted Striker 17377 | -3/Research | Spotted Striker 17396 | -3/Research | Build established: Assassin 17421 | -3/Research | Discovered new exit (range 19) 17460 | -3/Research | Discovered exit to Research (range 16) 17471 | -3/Research | Identified exit to Testing 17620 | -3/Research | Spotted Executioner 17635 | -3/Research | Spotted Striker 17659 | -3/Research | Destroyed Executioner 17673 | -3/Research | Destroyed Striker 17688 | -3/Research | Found Exp. Core Analyzer 17982 | -3/Research | Build established: Scavenger-Assassin 18020 | -3/Research | Spotted Striker 18061 | -3/Research | Central database locked down 18369 | -3/Research | Spotted Striker 18423 | -3/Research | Spotted Striker 18448 | -3/Research | Discovered exit to Testing (range 6) 18458 | -3/Research | Destroyed Striker 18496 | -3/Research | Entered Testing 18497 | -3/Testing | Forged Quantum Companion 18632 | -3/Testing | Spotted Striker 18634 | -3/Testing | Spotted Striker 18749 | -3/Testing | Discovered exit to Research (range 17) 18805 | -3/Testing | Fabricated Microactuators (x2) 19292 | -3/Testing | Found Centrium Heavy Armor Plating 19331 | -3/Testing | Spotted Superbehemoth 19332 | -3/Testing | Superbehemoth self-activated to run performance analysis 19407 | -3/Testing | Entered Research 19407 | -2/Research | Evolved 2 slots: Utility x2 19408 | -2/Research | Identified exit to Quarantine 19542 | -2/Research | Spotted B-90 Cyclops 19699 | -2/Research | Build established: Assassin 19741 | -2/Research | Discovered new exit (range 24) 20075 | -2/Research | Repaired Adv. Force Field 20483 | -2/Research | Destroyed 12 combat bots 20638 | -2/Research | Destroyed 7 combat bots 20767 | -2/Research | Entered Quarantine 20779 | -2/Quarantine | Found Alien Artifact 20803 | -2/Quarantine | Found Alien Artifact 20854 | -2/Quarantine | Found Alien Artifact 20854 | -2/Quarantine | Identified Phase Armor 21204 | -2/Quarantine | Found Alien Artifact 21255 | -2/Quarantine | Discovered new exit (range 15) 21273 | -2/Quarantine | Identified Core Reset Matrix 21273 | -2/Quarantine | Identified Transdimensional Reconstructor 21288 | -2/Quarantine | System corruption reached 10% 21301 | -2/Quarantine | Build established: Mutant 21362 | -2/Quarantine | Cryocooling Duct disabled 21374 | -2/Quarantine | Spotted Alpha 7 21377 | -2/Quarantine | Ambient heat levels rising (+20) 21377 | -2/Quarantine | Non-combat units ordered to evacuate 21419 | -2/Quarantine | Destroyed Alpha 7 21492 | -2/Quarantine | Identified exit to Access 21517 | -2/Quarantine | First assault squad dispatched 21536 | -2/Quarantine | Found Alien Artifact 21537 | -2/Quarantine | Identified Subatomic Replicator 21537 | -2/Quarantine | Forged Prototype Slashing Weapon 21582 | -2/Quarantine | Spotted Fortress 21653 | -2/Quarantine | Lost 3 parts (1p2u) 21673 | -2/Quarantine | Discovered new exit (range 5) 21673 | -2/Quarantine | Discovered new exit (range 6) 21676 | -2/Quarantine | Identified exit to Section 7 21683 | -2/Quarantine | Entered Section 7 21950 | -2/Section 7 | Found Alien Artifact 21951 | -2/Section 7 | Identified Integrated Mediator 21951 | -2/Section 7 | Installed Integrated Mediator, increased core attachment efficiency 21974 | -2/Section 7 | Build established: Scavenger-Assassin 22052 | -2/Section 7 | Destroyed 7 combat bots 22109 | -2/Section 7 | Found Alien Artifact 22109 | -2/Section 7 | Identified Integrated Dissipator 22109 | -2/Section 7 | Installed Integrated Dissipator, increased core heat dissipation (+20) 22183 | -2/Section 7 | First assault squad dispatched 22289 | -2/Section 7 | Identified Hpw. Transdimensional Reconstructor 22289 | -2/Section 7 | Warped through subspace 22289 | -2/Section 7 | Spotted B-99 Colossus 22301 | -2/Section 7 | Spotted Alpha 7 22384 | -2/Section 7 | Found Alien Artifact 22384 | -2/Section 7 | Identified Integrity Redistributor 22384 | -2/Section 7 | Used Integrity Redistributor, redistributed integrity from core (-197) 22386 | -2/Section 7 | Found Integrity Redistributor 22417 | -2/Section 7 | Core integrity fell below 50% 22476 | -2/Section 7 | Warped through subspace 22506 | -2/Section 7 | Lost 6 parts (3p3u) 22509 | -2/Section 7 | Spotted Executioner 22636 | -2/Section 7 | Befriended a Behemoth using the annoying Tinkerer's hack 22710 | -2/Section 7 | Found Alien Artifact 22710 | -2/Section 7 | Identified LRC Insulator 22710 | -2/Section 7 | Installed LRC Insulator, 1 resistance modified: EM +25% 22718 | -2/Section 7 | Found LRC Insulator 22718 | -2/Section 7 | Installed LRC Insulator, 1 resistance modified: EM +25% 22820 | -2/Section 7 | Found Hvy. Reflective Plating 22845 | -2/Section 7 | Found Hvy. Insulated Plating 23138 | -2/Section 7 | Found Transdimensional Reconstructor 23141 | -2/Section 7 | Found Transdimensional Reconstructor 23145 | -2/Section 7 | Found Transdimensional Reconstructor 23156 | -2/Section 7 | Spotted Executioner 23156 | -2/Section 7 | Spotted Executioner 23294 | -2/Section 7 | Destroyed Executioner 23300 | -2/Section 7 | Core integrity fell below 20% 23308 | -2/Section 7 | Found Exp. Core Analyzer 23310 | -2/Section 7 | Warped through subspace 23371 | -2/Section 7 | Destroyed Executioner 23378 | -2/Section 7 | Found Exp. Core Analyzer 23386 | -2/Section 7 | Warped through subspace 23495 | -2/Section 7 | Used Integrity Redistributor, redistributed integrity to core (+266) 23496 | -2/Section 7 | Warped through subspace 23524 | -2/Section 7 | Identified Dimensional Node Initializer 23524 | -2/Section 7 | Used Core Reset Matrix 23528 | -2/Section 7 | Detected hypermatrix surge 23528 | -2/Section 7 | Sensed 13 artifacts in vicinity 23574 | -2/Section 7 | Lost 3 parts (3u) 23627 | -2/Section 7 | Found Exp. Targeting Computer 23642 | -2/Section 7 | Found Terrabomb 23786 | -2/Section 7 | Build established: Scavenger-Mutant 23994 | -2/Section 7 | Found Exp. Cloaking Device 24017 | -2/Section 7 | Found Hellfire Missile Launcher 24144 | -2/Section 7 | Spotted S7 Guard 24194 | -2/Section 7 | Attached CPS modules to S7 Guard 24221 | -2/Section 7 | Destroyed S7 Guard 24226 | -2/Section 7 | Found Hvy. Regenerative Plating 24293 | -2/Section 7 | Found Core Physics Calibrator 24357 | -2/Section 7 | Spotted B-90 Cyclops 24375 | -2/Section 7 | Discovered exit to Access (range 8) 24420 | -2/Section 7 | Entered Access 24420 | -1/Access | Evolved 2 slots (calibrated): Propulsion x1, Utility x2, -Weapon x1 24920 | -1/Access | First assault squad dispatched 24994 | -1/Access | Build established: Alien-Mutant 25268 | -1/Access | Unchained authorized (QV-33N) 25417 | -1/Access | Identified exit to Command 25621 | -1/Access | Destroyed 9 combat bots 25739 | -1/Access | Lost 3 parts (1n2u) 25814 | -1/Access | Destroyed 27 combat bots 25819 | -1/Access | Lost 3 parts (1p1n1u) 25869 | -1/Access | Lost 3 parts (1p1n1u) 25881 | -1/Access | Destroyed 10 combat bots 26152 | -1/Access | Build established: Scavenger-Mutant 26154 | -1/Access | System corruption reached 10% 26305 | -1/Access | Spotted B-99 Colossus 26317 | -1/Access | Found Gamma Bomb Array 26645 | -1/Access | Entered Command 26890 | -1/Command | Found Imp. Powered Armor 26892 | -1/Command | Found Imp. Powered Armor 26895 | -1/Command | First assault squad dispatched 27555 | -1/Command | High security lockdown imminent 27579 | -1/Command | Spotted Combat Programmer 27580 | -1/Command | Spotted Combat Programmer 27590 | -1/Command | Destroyed Combat Programmer 27592 | -1/Command | Destroyed Combat Programmer 27595 | -1/Command | Spotted M Guard 27596 | -1/Command | Spotted M Guard 27603 | -1/Command | Core integrity fell below 50% 27635 | -1/Command | High security lockdown engaged 27668 | -1/Command | All MAIN.C guards destroyed 27672 | -1/Command | Emitted hypermatrix ping 27677 | -1/Command | Assembled emerged from beneath the floor 27708 | -1/Command | Lost 15 parts (1p5n9u) 27747 | -1/Command | Door terminal overloaded 27781 | -1/Command | Met MAIN.C 27786 | -1/Command | 0b10 Conduit disabled 27800 | -1/Command | Lost 6 allies 27818 | -1/Command | Destroyed MAIN.C Shell 27820 | -1/Command | MAIN.C activated Command garrisons 27861 | -1/Command | Core integrity fell below 20% 27869 | -1/Command | Spotted Investigator 27873 | -1/Command | Scanned by Researcher 27882 | -1/Command | Destroyed Investigator 27897 | -1/Command | Destroyed by MAIN.C with Improved Heavy Machine Gun Last Messages --------------- 27893_ Stasis bubble strength at 56. 27893_ I-47 Archangel stasis bubble bursts. 27894_ B-74 Champion stasis bubble strength at 170. 27894_ Stasis bubble strength at 50. 27894_ Quantum Reactor destroyed. 27895_ B-74 Champion stasis bubble strength at 140. 27895_ Stasis bubble strength at 44. Superquantum Companion releases a shadow of itself that zips off towards MAIN.C. 27896_ B-74 Champion stasis bubble strength at 110. 27896_ Stasis bubble strength at 38. Superquantum Companion releases a shadow of itself that zips off towards MAIN.C. 27896_ G-73 Enforcer stasis bubble bursts. 27897_ B-74 Champion stasis bubble strength at 80. 27897_ Stasis bubble strength at 32. Map ----- +----------------------------------------------------+ | ?????????????????????????????????????????????????? | | ?????????????????????????????????????????????????? | | ?????????????????????????????????????????????????? | | ?????????????????????????????????????????????????? | | ???????????################??????????????????????? | | ??????????"" """" #??????????????????????? | | ??????????? "" #??????????????????????? | | ???????????? "" #######################? | | ?????????""""""" + #? | | ?????????" """ + #? | | ??????????""""" % + * #? | | ??????????""""" ################### #? | | ??????????""""" #?????????????????# #? | | ??????? "" !%[ #?????????????????# ## | | ??????? " "#?????????????????# # | | ????????"""""" "#?????????????????#//+## | | ??????" " %""#?????????????????# | | ?????? """""" g""#?????????????????# | | ?????? " " " el% #?????????????????# | | ??????? " " " gg"%#?????????????????# | | ??????? " " " """"b g#?????????????????# | | ??????? """ " " """gi#?????????????????# # | | ??????? " " " " #?????????????????###### | | ????????""????"""" %!g%#??????????????????????? | | ???????????"" " """" "%!#??????????????????????? | | ?????????????? " " "M]@#??????????????????????? | | ???????????????############??????????????????????? | | ?????????????????????????????????????????????????? | | ?????????????????????????????????????????????????? | | ?????????????????????????????????????????????????? | | ?????????????????????????????????????????????????? | | ?????????????????????????????????????????????????? | | ?????????????????????????????????????????????????? | | ?????????????????????????????????????????????????? | | ?????????????????????????????????????????????????? | | ?????????????????????????????????????????????????? | | ?????????????????????????????????????????????????? | | ?????????????????????????????????????????????????? | | ?????????????????????????????????????????????????? | | ?????????????????????????????????????????????????? | | ?????????????????????????????????????????????????? | | ?????????????????????????????????????????????????? | | ?????????????????????????????????????????????????? | | ?????????????????????????????????????????????????? | | ?????????????????????????????????????????????????? | | ?????????????????????????????????????????????????? | | ?????????????????????????????????????????????????? | | ?????????????????????????????????????????????????? | | ?????????????????????????????????????????????????? | | ?????????????????????????????????????????????????? | +----------------------------------------------------+ Best States ------------- Heat Dissipation 114 Energy Generation 89 Energy Capacity 1280 Matter Stores 300 Matter Capacity 300 Sight Range 24 Robot Scan Range 18 Terrain Scan Density 10 Jamming Range 16 Cloak Strength 4 EM Shielding 4 Armor Coverage 1625 Resistance: TH 25 Resistance: EM 80 Core Shielding 30 Melee Speed Boost 50 Phase Shifting 10 Evasion (%) 70 Targeting Accuracy 12 Melee Accuracy 40 Target Analysis 12 Core Analysis 12 Armor Integrity Analysis 40 Recoil Reduction 4 Offensive Hacking 24 Item Schematics ----------------- Prc. Phase Gun | -2/Section 7 | Archive Hvy. Antimatter Reactor | -2/Section 7 | Archive Adv. Dynamic Insulation System | -2/Section 7 | Archive Exp. Field Recycling Unit | -2/Section 7 | Archive Exp. Signal Interpreter | -2/Section 7 | Archive Robot Schematics ------------------ None Fabricated ------------ Microactuators | x2 | -5/Factory Microactuators | x2 | -3/Testing Repaired ---------- Adv. Force Field | 37% | -2/Research Studied --------- Centrium Leg | -1/Access | Hacked Alien Tech Used ----------------- Integrated Reactor Phase Armor Subatomic Replicator Integrated Mediator Integrated Dissipator High-powered Transdimensional Reconstructor Integrity Redistributor Transdimensional Reconstructor LRC Insulator Core Reset Matrix Core Physics Calibrator Achievements -------------- Friends Forever Challenges ------------ None Game ------ Seed DisruptionSapperHarness Manual? 0 Play Time 04:18:26 Cumulative 564.0 hours Start 2026.09.19 @ 18:47:01 End 2026.09.20 @ 09:32:44 Sessions 3 Manual Loads 0 Difficulty Rogue Special Mode None Game No. 214 Rogue 214 Adventurer 0 Explorer 0 Win Type - Total 23 Types 5/0/12/0/1/0/2/1/1/1 Lore% 83 Gallery% 86 Achievement% 79 Wizard Run 0 Options --------- Layout 1 ASCII 0 Keyboard 1 Movement Arrows Keybinds 0 Fullscreen 1 Font 24/Smallcaps Map View 50x35 Zoom Use 0% Tactical HUD 1 Map Filters NONE Filters NONE Steam 1 RUN: bb2383f4-d464-455d-88f8-6275d1f75b8b